Publisher Label,Publisher URI,"Supplier ID","Supplier","Invoice No.","Amount (£)","Purpose","Transaction Number","Payment Date","Organisational Unit","Cost Centre(T)","Internal Category Number"
"Wolverhampton City Council","http://opendatacommunities.org/id/metropolitan-district-council/wolverhampton","706697","Radis Community Care","1012201720171214","52.95","TPP - Home Care","190403141","15/12/2017","Older People Care Purchasing","OP Care Purchasing (Spot Placements)","R5420"
"Wolverhampton City Council","http://opendatacommunities.org/id/metropolitan-district-council/wolverhampton","706697","Radis Community Care","1012201720171214","67.07","TPP - Home Care","190403141","15/12/2017","Older People Care Purchasing","OP Care Purchasing (Spot Placements)","R5420"
"Wolverhampton City Council","http://opendatacommunities.org/id/metropolitan-district-council/wolverhampton","706697","Radis Community Care","1012201720171214","292.99","TPP - Home Care","190403141","15/12/2017","Older People Care Purchasing","OP Care Purchasing (Spot Placements)","R5420"
"Wolverhampton City Council","http://opendatacommunities.org/id/metropolitan-district-council/wolverhampton","706697","Radis Community Care","1012201720171214","292.99","TPP - Home Care","190403141","15/12/2017","Older People Care Purchasing","OP Care Purchasing (Spot Placements)","R5420"
"Wolverhampton City Council","http://opendatacommunities.org/id/metropolitan-district-council/wolverhampton","706697","Radis Community Care","1012201720171214","74.13","TPP - Home Care","190403141","15/12/2017","Older People Care Purchasing","OP Care Purchasing (Spot Placements)","R5420"
"Wolverhampton City Council","http://opendatacommunities.org/id/metropolitan-district-council/wolverhampton","706697","Radis Community Care","1012201720171214","194.15","TPP - Home Care","190403141","15/12/2017","Older People Care Purchasing","OP Care Purchasing (Spot Placements)","R5420"
"Wolverhampton City Council","http://opendatacommunities.org/id/metropolitan-district-council/wolverhampton","706697","Radis Community Care","1012201720171214","201.21","TPP - Home Care","190403141","15/12/2017","Older People Care Purchasing","OP Care Purchasing (Spot Placements)","R5420"
"Wolverhampton City Council","http://opendatacommunities.org/id/metropolitan-district-council/wolverhampton","706697","Radis Community Care","1012201720171214","222.39","TPP - Home Care","190403141","15/12/2017","Older People Care Purchasing","OP Care Purchasing (Spot Placements)","R5420"
"Wolverhampton City Council","http://opendatacommunities.org/id/metropolitan-district-council/wolverhampton","706697","Radis Community Care","1012201720171214","201.21","TPP - Home Care","190403141","15/12/2017","Older People Care Purchasing","OP Care Purchasing (Spot Placements)","R5420"
"Wolverhampton City Council","http://opendatacommunities.org/id/metropolitan-district-council/wolverhampton","706697","Radis Community Care","1012201720171214","109.43","TPP - Home Care","190403141","15/12/2017","Older People Care Purchasing","OP Care Purchasing (Spot Placements)","R5420"
"Wolverhampton City Council","http://opendatacommunities.org/id/metropolitan-district-council/wolverhampton","706697","Radis Community Care","1012201720171214","49.42","TPP - Home Care","190403141","15/12/2017","Older People Care Purchasing","OP Care Purchasing (Spot Placements)","R5420"
"Wolverhampton City Council","http://opendatacommunities.org/id/metropolitan-district-council/wolverhampton","706697","Radis Community Care","1012201720171214","123.55","TPP - Home Care","190403141","15/12/2017","Older People Care Purchasing","OP Care Purchasing (Spot Placements)","R5420"
"Wolverhampton City Council","http://opendatacommunities.org/id/metropolitan-district-council/wolverhampton","706697","Radis Community Care","1012201720171214","49.42","TPP - Home Care","190403141","15/12/2017","Older People Care Purchasing","OP Care Purchasing (Spot Placements)","R5420"
"Wolverhampton City Council","http://opendatacommunities.org/id/metropolitan-district-council/wolverhampton","706697","Radis Community Care","1012201720171214","49.42","TPP - Home Care","190403141","15/12/2017","Older People Care Purchasing","OP Care Purchasing (Spot Placements)","R5420"
"Wolverhampton City Council","http://opendatacommunities.org/id/metropolitan-district-council/wolverhampton","706697","Radis Community Care","1012201720171214","215.33","TPP - Home Care","190403141","15/12/2017","Older People Care Purchasing","OP Care Purchasing (Spot Placements)","R5420"
"Wolverhampton City Council","http://opendatacommunities.org/id/metropolitan-district-council/wolverhampton","706697","Radis Community Care","1012201720171214","28.24","TPP - Home Care","190403141","15/12/2017","Older People Care Purchasing","OP Care Purchasing (Spot Placements)","R5420"
"Wolverhampton City Council","http://opendatacommunities.org/id/metropolitan-district-council/wolverhampton","706697","Radis Community Care","1012201720171214","462.43","TPP - Home Care","190403141","15/12/2017","Older People Care Purchasing","OP Care Purchasing (Spot Placements)","R5420"
"Wolverhampton City Council","http://opendatacommunities.org/id/metropolitan-district-council/wolverhampton","706697","Radis Community Care","1012201720171214","462.43","TPP - Home Care","190403141","15/12/2017","Older People Care Purchasing","OP Care Purchasing (Spot Placements)","R5420"
"Wolverhampton City Council","http://opendatacommunities.org/id/metropolitan-district-council/wolverhampton","706697","Radis Community Care","1012201720171214","74.13","TPP - Home Care","190403141","15/12/2017","Older People Care Purchasing","OP Care Purchasing (Spot Placements)","R5420"
"Wolverhampton City Council","http://opendatacommunities.org/id/metropolitan-district-council/wolverhampton","706697","Radis Community Care","1012201720171214","222.39","TPP - Home Care","190403141","15/12/2017","Older People Care Purchasing","OP Care Purchasing (Spot Placements)","R5420"
"Wolverhampton City Council","http://opendatacommunities.org/id/metropolitan-district-council/wolverhampton","706697","Radis Community Care","1012201720171214","144.73","TPP - Home Care","190403141","15/12/2017","Older People Care Purchasing","OP Care Purchasing (Spot Placements)","R5420"
"Wolverhampton City Council","http://opendatacommunities.org/id/metropolitan-district-council/wolverhampton","706697","Radis Community Care","1012201720171214","102.37","TPP - Home Care","190403141","15/12/2017","Older People Care Purchasing","OP Care Purchasing (Spot Placements)","R5420"
"Wolverhampton City Council","http://opendatacommunities.org/id/metropolitan-district-council/wolverhampton","706697","Radis Community Care","1012201720171214","21.18","TPP - Home Care","190403141","15/12/2017","Older People Care Purchasing","OP Care Purchasing (Spot Placements)","R5420"
"Wolverhampton City Council","http://opendatacommunities.org/id/metropolitan-district-council/wolverhampton","706697","Radis Community Care","1012201720171214","56.48","TPP - Home Care","190403141","15/12/2017","Older People Care Purchasing","OP Care Purchasing (Spot Placements)","R5420"
"Wolverhampton City Council","http://opendatacommunities.org/id/metropolitan-district-council/wolverhampton","706697","Radis Community Care","1012201720171214","14.12","TPP - Home Care","190403141","15/12/2017","Older People Care Purchasing","OP Care Purchasing (Spot Placements)","R5420"
"Wolverhampton City Council","http://opendatacommunities.org/id/metropolitan-district-council/wolverhampton","706697","Radis Community Care","1012201720171214","123.55","TPP - Home Care","190403141","15/12/2017","Older People Care Purchasing","OP Care Purchasing (Spot Placements)","R5420"
"Wolverhampton City Council","http://opendatacommunities.org/id/metropolitan-district-council/wolverhampton","706697","Radis Community Care","1012201720171214","105.90","TPP - Home Care","190403141","15/12/2017","Older People Care Purchasing","OP Care Purchasing (Spot Placements)","R5420"
"Wolverhampton City Council","http://opendatacommunities.org/id/metropolitan-district-council/wolverhampton","706697","Radis Community Care","1012201720171214","42.36","TPP - Home Care","190403141","15/12/2017","Older People Care Purchasing","OP Care Purchasing (Spot Placements)","R5420"
"Wolverhampton City Council","http://opendatacommunities.org/id/metropolitan-district-council/wolverhampton","706697","Radis Community Care","1012201720171214","95.31","TPP - Home Care","190403141","15/12/2017","Older People Care Purchasing","OP Care Purchasing (Spot Placements)","R5420"
"Wolverhampton City Council","http://opendatacommunities.org/id/metropolitan-district-council/wolverhampton","706697","Radis Community Care","1012201720171214","194.15","TPP - Home Care","190403141","15/12/2017","Older People Care Purchasing","OP Care Purchasing (Spot Placements)","R5420"
"Wolverhampton City Council","http://opendatacommunities.org/id/metropolitan-district-council/wolverhampton","706697","Radis Community Care","1012201720171214","190.62","TPP - Home Care","190403141","15/12/2017","Older People Care Purchasing","OP Care Purchasing (Spot Placements)","R5420"
"Wolverhampton City Council","http://opendatacommunities.org/id/metropolitan-district-council/wolverhampton","706697","Radis Community Care","1012201720171214","105.90","TPP - Home Care","190403141","15/12/2017","Older People Care Purchasing","OP Care Purchasing (Spot Placements)","R5420"
"Wolverhampton City Council","http://opendatacommunities.org/id/metropolitan-district-council/wolverhampton","706697","Radis Community Care","1012201720171214","254.16","TPP - Home Care","190403141","15/12/2017","Older People Care Purchasing","OP Care Purchasing (Spot Placements)","R5420"
"Wolverhampton City Council","http://opendatacommunities.org/id/metropolitan-district-council/wolverhampton","706697","Radis Community Care","1012201720171214","225.92","TPP - Home Care","190403141","15/12/2017","Older People Care Purchasing","OP Care Purchasing (Spot Placements)","R5420"
"Wolverhampton City Council","http://opendatacommunities.org/id/metropolitan-district-council/wolverhampton","706697","Radis Community Care","1012201720171214","35.30","TPP - Home Care","190403141","15/12/2017","Older People Care Purchasing","OP Care Purchasing (Spot Placements)","R5420"
"Wolverhampton City Council","http://opendatacommunities.org/id/metropolitan-district-council/wolverhampton","706697","Radis Community Care","1012201720171214","49.42","TPP - Home Care","190403141","15/12/2017","Older People Care Purchasing","OP Care Purchasing (Spot Placements)","R5420"
"Wolverhampton City Council","http://opendatacommunities.org/id/metropolitan-district-council/wolverhampton","706697","Radis Community Care","1012201720171214","98.84","TPP - Home Care","190403141","15/12/2017","Older People Care Purchasing","OP Care Purchasing (Spot Placements)","R5420"
"Wolverhampton City Council","http://opendatacommunities.org/id/metropolitan-district-council/wolverhampton","706697","Radis Community Care","1012201720171214","39.00","TPP - Home Care","190403141","15/12/2017","Older People Care Purchasing","OP Care Purchasing (Spot Placements)","R5420"
"Wolverhampton City Council","http://opendatacommunities.org/id/metropolitan-district-council/wolverhampton","706697","Radis Community Care","1012201720171214","247.10","TPP - Home Care","190403141","15/12/2017","Older People Care Purchasing","OP Care Purchasing (Spot Placements)","R5420"
"Wolverhampton City Council","http://opendatacommunities.org/id/metropolitan-district-council/wolverhampton","706697","Radis Community Care","1012201720171214","49.42","TPP - Home Care","190403141","15/12/2017","Older People Care Purchasing","OP Care Purchasing (Spot Placements)","R5420"
"Wolverhampton City Council","http://opendatacommunities.org/id/metropolitan-district-council/wolverhampton","706697","Radis Community Care","1012201720171214","123.55","TPP - Home Care","190403141","15/12/2017","Older People Care Purchasing","OP Care Purchasing (Spot Placements)","R5420"
"Wolverhampton City Council","http://opendatacommunities.org/id/metropolitan-district-council/wolverhampton","706697","Radis Community Care","1012201720171214","123.55","TPP - Home Care","190403141","15/12/2017","Older People Care Purchasing","OP Care Purchasing (Spot Placements)","R5420"
"Wolverhampton City Council","http://opendatacommunities.org/id/metropolitan-district-council/wolverhampton","706697","Radis Community Care","1012201720171214","201.21","TPP - Home Care","190403141","15/12/2017","Older People Care Purchasing","OP Care Purchasing (Spot Placements)","R5420"
"Wolverhampton City Council","http://opendatacommunities.org/id/metropolitan-district-council/wolverhampton","706697","Radis Community Care","1012201720171214","222.39","TPP - Home Care","190403141","15/12/2017","Older People Care Purchasing","OP Care Purchasing (Spot Placements)","R5420"
"Wolverhampton City Council","http://opendatacommunities.org/id/metropolitan-district-council/wolverhampton","706697","Radis Community Care","1012201720171214","141.20","TPP - Home Care","190403141","15/12/2017","Older People Care Purchasing","OP Care Purchasing (Spot Placements)","R5420"
"Wolverhampton City Council","http://opendatacommunities.org/id/metropolitan-district-council/wolverhampton","706697","Radis Community Care","1012201720171214","98.84","TPP - Home Care","190403141","15/12/2017","Older People Care Purchasing","OP Care Purchasing (Spot Placements)","R5420"
"Wolverhampton City Council","http://opendatacommunities.org/id/metropolitan-district-council/wolverhampton","706697","Radis Community Care","1012201720171214","49.42","TPP - Home Care","190403141","15/12/2017","Older People Care Purchasing","OP Care Purchasing (Spot Placements)","R5420"
"Wolverhampton City Council","http://opendatacommunities.org/id/metropolitan-district-council/wolverhampton","706697","Radis Community Care","1012201720171214","215.33","TPP - Home Care","190403141","15/12/2017","Older People Care Purchasing","OP Care Purchasing (Spot Placements)","R5420"
"Wolverhampton City Council","http://opendatacommunities.org/id/metropolitan-district-council/wolverhampton","706697","Radis Community Care","1012201720171214","35.30","TPP - Home Care","190403141","15/12/2017","Older People Care Purchasing","OP Care Purchasing (Spot Placements)","R5420"
"Wolverhampton City Council","http://opendatacommunities.org/id/metropolitan-district-council/wolverhampton","706697","Radis Community Care","1012201720171214","98.84","TPP - Home Care","190403141","15/12/2017","Older People Care Purchasing","OP Care Purchasing (Spot Placements)","R5420"
"Wolverhampton City Council","http://opendatacommunities.org/id/metropolitan-district-council/wolverhampton","706697","Radis Community Care","1012201720171214","60.01","TPP - Home Care","190403141","15/12/2017","Older People Care Purchasing","OP Care Purchasing (Spot Placements)","R5420"
"Wolverhampton City Council","http://opendatacommunities.org/id/metropolitan-district-council/wolverhampton","706697","Radis Community Care","1012201720171214","49.42","TPP - Home Care","190403141","15/12/2017","Older People Care Purchasing","OP Care Purchasing (Spot Placements)","R5420"
"Wolverhampton City Council","http://opendatacommunities.org/id/metropolitan-district-council/wolverhampton","706697","Radis Community Care","1012201720171214","49.42","TPP - Home Care","190403141","15/12/2017","Older People Care Purchasing","OP Care Purchasing (Spot Placements)","R5420"
"Wolverhampton City Council","http://opendatacommunities.org/id/metropolitan-district-council/wolverhampton","706697","Radis Community Care","1012201720171214","38.83","TPP - Home Care","190403141","15/12/2017","Older People Care Purchasing","OP Care Purchasing (Spot Placements)","R5420"
"Wolverhampton City Council","http://opendatacommunities.org/id/metropolitan-district-council/wolverhampton","706697","Radis Community Care","1012201720171214","98.84","TPP - Home Care","190403141","15/12/2017","Older People Care Purchasing","OP Care Purchasing (Spot Placements)","R5420"
"Wolverhampton City Council","http://opendatacommunities.org/id/metropolitan-district-council/wolverhampton","706697","Radis Community Care","1012201720171214","95.31","TPP - Home Care","190403141","15/12/2017","Older People Care Purchasing","OP Care Purchasing (Spot Placements)","R5420"
"Wolverhampton City Council","http://opendatacommunities.org/id/metropolitan-district-council/wolverhampton","706697","Radis Community Care","1012201720171214","49.42","TPP - Home Care","190403141","15/12/2017","Older People Care Purchasing","OP Care Purchasing (Spot Placements)","R5420"
"Wolverhampton City Council","http://opendatacommunities.org/id/metropolitan-district-council/wolverhampton","706697","Radis Community Care","1012201720171214","49.42","TPP - Home Care","190403141","15/12/2017","Older People Care Purchasing","OP Care Purchasing (Spot Placements)","R5420"
"Wolverhampton City Council","http://opendatacommunities.org/id/metropolitan-district-council/wolverhampton","706697","Radis Community Care","1012201720171214","98.84","TPP - Home Care","190403141","15/12/2017","Older People Care Purchasing","OP Care Purchasing (Spot Placements)","R5420"
"Wolverhampton City Council","http://opendatacommunities.org/id/metropolitan-district-council/wolverhampton","706697","Radis Community Care","1012201720171214","21.18","TPP - Home Care","190403141","15/12/2017","Older People Care Purchasing","OP Care Purchasing (Spot Placements)","R5420"
"Wolverhampton City Council","http://opendatacommunities.org/id/metropolitan-district-council/wolverhampton","706697","Radis Community Care","1012201720171214","180.03","TPP - Home Care","190403141","15/12/2017","Older People Care Purchasing","OP Care Purchasing (Spot Placements)","R5420"
"Wolverhampton City Council","http://opendatacommunities.org/id/metropolitan-district-council/wolverhampton","706697","Radis Community Care","1012201720171214","49.42","TPP - Home Care","190403141","15/12/2017","Older People Care Purchasing","OP Care Purchasing (Spot Placements)","R5420"
"Wolverhampton City Council","http://opendatacommunities.org/id/metropolitan-district-council/wolverhampton","706697","Radis Community Care","1012201720171214","91.78","TPP - Home Care","190403141","15/12/2017","Older People Care Purchasing","OP Care Purchasing (Spot Placements)","R5420"
"Wolverhampton City Council","http://opendatacommunities.org/id/metropolitan-district-council/wolverhampton","706697","Radis Community Care","1012201720171214","70.60","TPP - Home Care","190403141","15/12/2017","Older People Care Purchasing","OP Care Purchasing (Spot Placements)","R5420"
"Wolverhampton City Council","http://opendatacommunities.org/id/metropolitan-district-council/wolverhampton","706697","Radis Community Care","1012201720171214","31.77","TPP - Home Care","190403141","15/12/2017","Older People Care Purchasing","OP Care Purchasing (Spot Placements)","R5420"
"Wolverhampton City Council","http://opendatacommunities.org/id/metropolitan-district-council/wolverhampton","706697","Radis Community Care","1012201720171214","197.68","TPP - Home Care","190403141","15/12/2017","Older People Care Purchasing","OP Care Purchasing (Spot Placements)","R5420"
"Wolverhampton City Council","http://opendatacommunities.org/id/metropolitan-district-council/wolverhampton","706697","Radis Community Care","1012201720171214","194.15","TPP - Home Care","190403141","15/12/2017","Older People Care Purchasing","OP Care Purchasing (Spot Placements)","R5420"
"Wolverhampton City Council","http://opendatacommunities.org/id/metropolitan-district-council/wolverhampton","706697","Radis Community Care","1012201720171214","123.55","TPP - Home Care","190403141","15/12/2017","Older People Care Purchasing","OP Care Purchasing (Spot Placements)","R5420"
"Wolverhampton City Council","http://opendatacommunities.org/id/metropolitan-district-council/wolverhampton","706697","Radis Community Care","1012201720171214","222.39","TPP - Home Care","190403141","15/12/2017","Older People Care Purchasing","OP Care Purchasing (Spot Placements)","R5420"
"Wolverhampton City Council","http://opendatacommunities.org/id/metropolitan-district-council/wolverhampton","706697","Radis Community Care","1012201720171214","95.31","TPP - Home Care","190403141","15/12/2017","Older People Care Purchasing","OP Care Purchasing (Spot Placements)","R5420"
"Wolverhampton City Council","http://opendatacommunities.org/id/metropolitan-district-council/wolverhampton","706697","Radis Community Care","1012201720171214","42.36","TPP - Home Care","190403141","15/12/2017","Older People Care Purchasing","OP Care Purchasing (Spot Placements)","R5420"
"Wolverhampton City Council","http://opendatacommunities.org/id/metropolitan-district-council/wolverhampton","706697","Radis Community Care","1012201720171214","218.86","TPP - Home Care","190403141","15/12/2017","Older People Care Purchasing","OP Care Purchasing (Spot Placements)","R5420"
"Wolverhampton City Council","http://opendatacommunities.org/id/metropolitan-district-council/wolverhampton","706697","Radis Community Care","1012201720171214","218.86","TPP - Home Care","190403141","15/12/2017","Older People Care Purchasing","OP Care Purchasing (Spot Placements)","R5420"
"Wolverhampton City Council","http://opendatacommunities.org/id/metropolitan-district-council/wolverhampton","706697","Radis Community Care","1012201720171214","148.26","TPP - Home Care","190403141","15/12/2017","Older People Care Purchasing","OP Care Purchasing (Spot Placements)","R5420"
"Wolverhampton City Council","http://opendatacommunities.org/id/metropolitan-district-council/wolverhampton","706697","Radis Community Care","1012201720171214","148.26","TPP - Home Care","190403141","15/12/2017","Older People Care Purchasing","OP Care Purchasing (Spot Placements)","R5420"
"Wolverhampton City Council","http://opendatacommunities.org/id/metropolitan-district-council/wolverhampton","706697","Radis Community Care","1012201720171214","225.92","TPP - Home Care","190403141","15/12/2017","Older People Care Purchasing","OP Care Purchasing (Spot Placements)","R5420"
"Wolverhampton City Council","http://opendatacommunities.org/id/metropolitan-district-council/wolverhampton","706697","Radis Community Care","1012201720171214","17.65","TPP - Home Care","190403141","15/12/2017","Older People Care Purchasing","OP Care Purchasing (Spot Placements)","R5420"
"Wolverhampton City Council","http://opendatacommunities.org/id/metropolitan-district-council/wolverhampton","706697","Radis Community Care","1012201720171214","144.73","TPP - Home Care","190403141","15/12/2017","Older People Care Purchasing","OP Care Purchasing (Spot Placements)","R5420"
"Wolverhampton City Council","http://opendatacommunities.org/id/metropolitan-district-council/wolverhampton","706697","Radis Community Care","1012201720171214","148.26","TPP - Home Care","190403141","15/12/2017","Older People Care Purchasing","OP Care Purchasing (Spot Placements)","R5420"
"Wolverhampton City Council","http://opendatacommunities.org/id/metropolitan-district-council/wolverhampton","706697","Radis Community Care","1012201720171214","218.86","TPP - Home Care","190403141","15/12/2017","Older People Care Purchasing","OP Care Purchasing (Spot Placements)","R5420"
"Wolverhampton City Council","http://opendatacommunities.org/id/metropolitan-district-council/wolverhampton","706697","Radis Community Care","1012201720171214","67.07","TPP - Home Care","190403141","15/12/2017","Older People Care Purchasing","OP Care Purchasing (Spot Placements)","R5420"
"Wolverhampton City Council","http://opendatacommunities.org/id/metropolitan-district-council/wolverhampton","706697","Radis Community Care","1012201720171214","74.13","TPP - Home Care","190403141","15/12/2017","Older People Care Purchasing","OP Care Purchasing (Spot Placements)","R5420"
"Wolverhampton City Council","http://opendatacommunities.org/id/metropolitan-district-council/wolverhampton","706697","Radis Community Care","1012201720171214","105.90","TPP - Home Care","190403141","15/12/2017","Older People Care Purchasing","OP Care Purchasing (Spot Placements)","R5420"
"Wolverhampton City Council","http://opendatacommunities.org/id/metropolitan-district-council/wolverhampton","706697","Radis Community Care","1012201720171214","130.61","TPP - Home Care","190403141","15/12/2017","Older People Care Purchasing","OP Care Purchasing (Spot Placements)","R5420"
"Wolverhampton City Council","http://opendatacommunities.org/id/metropolitan-district-council/wolverhampton","706697","Radis Community Care","1012201720171214","102.37","TPP - Home Care","190403141","15/12/2017","Older People Care Purchasing","OP Care Purchasing (Spot Placements)","R5420"
"Wolverhampton City Council","http://opendatacommunities.org/id/metropolitan-district-council/wolverhampton","706697","Radis Community Care","1012201720171214","91.78","TPP - Home Care","190403141","15/12/2017","Older People Care Purchasing","OP Care Purchasing (Spot Placements)","R5420"
"Wolverhampton City Council","http://opendatacommunities.org/id/metropolitan-district-council/wolverhampton","706697","Radis Community Care","1012201720171214","98.84","TPP - Home Care","190403141","15/12/2017","Older People Care Purchasing","OP Care Purchasing (Spot Placements)","R5420"
"Wolverhampton City Council","http://opendatacommunities.org/id/metropolitan-district-council/wolverhampton","706697","Radis Community Care","1012201720171214","187.09","TPP - Home Care","190403141","15/12/2017","Older People Care Purchasing","OP Care Purchasing (Spot Placements)","R5420"
"Wolverhampton City Council","http://opendatacommunities.org/id/metropolitan-district-council/wolverhampton","706697","Radis Community Care","1012201720171214","190.62","TPP - Home Care","190403141","15/12/2017","Older People Care Purchasing","OP Care Purchasing (Spot Placements)","R5420"
"Wolverhampton City Council","http://opendatacommunities.org/id/metropolitan-district-council/wolverhampton","706697","Radis Community Care","1012201720171214","141.20","TPP - Home Care","190403141","15/12/2017","Older People Care Purchasing","OP Care Purchasing (Spot Placements)","R5420"
"Wolverhampton City Council","http://opendatacommunities.org/id/metropolitan-district-council/wolverhampton","706697","Radis Community Care","1012201720171214","134.14","TPP - Home Care","190403141","15/12/2017","Older People Care Purchasing","OP Care Purchasing (Spot Placements)","R5420"
"Wolverhampton City Council","http://opendatacommunities.org/id/metropolitan-district-council/wolverhampton","706697","Radis Community Care","1012201720171214","215.33","TPP - Home Care","190403141","15/12/2017","Older People Care Purchasing","OP Care Purchasing (Spot Placements)","R5420"
"Wolverhampton City Council","http://opendatacommunities.org/id/metropolitan-district-council/wolverhampton","706697","Radis Community Care","1012201720171214","194.15","TPP - Home Care","190403141","15/12/2017","Older People Care Purchasing","OP Care Purchasing (Spot Placements)","R5420"
"Wolverhampton City Council","http://opendatacommunities.org/id/metropolitan-district-council/wolverhampton","706697","Radis Community Care","1012201720171214","307.11","TPP - Home Care","190403141","15/12/2017","Older People Care Purchasing","OP Care Purchasing (Spot Placements)","R5420"
"Wolverhampton City Council","http://opendatacommunities.org/id/metropolitan-district-council/wolverhampton","706697","Radis Community Care","1012201720171214","105.90","TPP - Home Care","190403141","15/12/2017","Older People Care Purchasing","OP Care Purchasing (Spot Placements)","R5420"
"Wolverhampton City Council","http://opendatacommunities.org/id/metropolitan-district-council/wolverhampton","706697","Radis Community Care","1012201720171214","98.84","TPP - Home Care","190403141","15/12/2017","Older People Care Purchasing","OP Care Purchasing (Spot Placements)","R5420"
"Wolverhampton City Council","http://opendatacommunities.org/id/metropolitan-district-council/wolverhampton","706697","Radis Community Care","1012201720171214","14.12","TPP - Home Care","190403141","15/12/2017","Older People Care Purchasing","OP Care Purchasing (Spot Placements)","R5420"
"Wolverhampton City Council","http://opendatacommunities.org/id/metropolitan-district-council/wolverhampton","706697","Radis Community Care","1012201720171214","98.84","TPP - Home Care","190403141","15/12/2017","Older People Care Purchasing","OP Care Purchasing (Spot Placements)","R5420"
"Wolverhampton City Council","http://opendatacommunities.org/id/metropolitan-district-council/wolverhampton","706697","Radis Community Care","1012201720171214","141.20","TPP - Home Care","190403141","15/12/2017","Older People Care Purchasing","OP Care Purchasing (Spot Placements)","R5420"
"Wolverhampton City Council","http://opendatacommunities.org/id/metropolitan-district-council/wolverhampton","706697","Radis Community Care","1012201720171214","151.79","TPP - Home Care","190403141","15/12/2017","Older People Care Purchasing","OP Care Purchasing (Spot Placements)","R5420"
"Wolverhampton City Council","http://opendatacommunities.org/id/metropolitan-district-council/wolverhampton","706697","Radis Community Care","1012201720171214","49.42","TPP - Home Care","190403141","15/12/2017","Older People Care Purchasing","OP Care Purchasing (Spot Placements)","R5420"
"Wolverhampton City Council","http://opendatacommunities.org/id/metropolitan-district-council/wolverhampton","706697","Radis Community Care","1012201720171214","158.85","TPP - Home Care","190403141","15/12/2017","Older People Care Purchasing","OP Care Purchasing (Spot Placements)","R5420"
"Wolverhampton City Council","http://opendatacommunities.org/id/metropolitan-district-council/wolverhampton","706697","Radis Community Care","1012201720171214","180.03","TPP - Home Care","190403141","15/12/2017","Older People Care Purchasing","OP Care Purchasing (Spot Placements)","R5420"
"Wolverhampton City Council","http://opendatacommunities.org/id/metropolitan-district-council/wolverhampton","706697","Radis Community Care","1012201720171214","84.72","TPP - Home Care","190403141","15/12/2017","Older People Care Purchasing","OP Care Purchasing (Spot Placements)","R5420"
"Wolverhampton City Council","http://opendatacommunities.org/id/metropolitan-district-council/wolverhampton","706697","Radis Community Care","1012201720171214","102.37","TPP - Home Care","190403141","15/12/2017","Older People Care Purchasing","OP Care Purchasing (Spot Placements)","R5420"
"Wolverhampton City Council","http://opendatacommunities.org/id/metropolitan-district-council/wolverhampton","706697","Radis Community Care","1012201720171214","102.37","TPP - Home Care","190403141","15/12/2017","Older People Care Purchasing","OP Care Purchasing (Spot Placements)","R5420"
"Wolverhampton City Council","http://opendatacommunities.org/id/metropolitan-district-council/wolverhampton","706697","Radis Community Care","1012201720171214","49.42","TPP - Home Care","190403141","15/12/2017","Older People Care Purchasing","OP Care Purchasing (Spot Placements)","R5420"
"Wolverhampton City Council","http://opendatacommunities.org/id/metropolitan-district-council/wolverhampton","706697","Radis Community Care","1012201720171214","49.42","TPP - Home Care","190403141","15/12/2017","Older People Care Purchasing","OP Care Purchasing (Spot Placements)","R5420"
"Wolverhampton City Council","http://opendatacommunities.org/id/metropolitan-district-council/wolverhampton","706697","Radis Community Care","1012201720171214","148.26","TPP - Home Care","190403141","15/12/2017","Older People Care Purchasing","OP Care Purchasing (Spot Placements)","R5420"
"Wolverhampton City Council","http://opendatacommunities.org/id/metropolitan-district-council/wolverhampton","706697","Radis Community Care","1012201720171214","98.84","TPP - Home Care","190403141","15/12/2017","Older People Care Purchasing","OP Care Purchasing (Spot Placements)","R5420"
"Wolverhampton City Council","http://opendatacommunities.org/id/metropolitan-district-council/wolverhampton","706697","Radis Community Care","1012201720171214","197.68","TPP - Home Care","190403141","15/12/2017","Older People Care Purchasing","OP Care Purchasing (Spot Placements)","R5420"
"Wolverhampton City Council","http://opendatacommunities.org/id/metropolitan-district-council/wolverhampton","706697","Radis Community Care","1012201720171214","141.20","TPP - Home Care","190403141","15/12/2017","Older People Care Purchasing","OP Care Purchasing (Spot Placements)","R5420"
"Wolverhampton City Council","http://opendatacommunities.org/id/metropolitan-district-council/wolverhampton","706697","Radis Community Care","1012201720171214","127.08","TPP - Home Care","190403141","15/12/2017","Older People Care Purchasing","OP Care Purchasing (Spot Placements)","R5420"
"Wolverhampton City Council","http://opendatacommunities.org/id/metropolitan-district-council/wolverhampton","706697","Radis Community Care","1012201720171214","91.78","TPP - Home Care","190403141","15/12/2017","Older People Care Purchasing","OP Care Purchasing (Spot Placements)","R5420"
"Wolverhampton City Council","http://opendatacommunities.org/id/metropolitan-district-council/wolverhampton","706697","Radis Community Care","1012201720171214","169.44","TPP - Home Care","190403141","15/12/2017","Older People Care Purchasing","OP Care Purchasing (Spot Placements)","R5420"
"Wolverhampton City Council","http://opendatacommunities.org/id/metropolitan-district-council/wolverhampton","706697","Radis Community Care","1012201720171214","176.50","TPP - Home Care","190403141","15/12/2017","Older People Care Purchasing","OP Care Purchasing (Spot Placements)","R5420"
"Wolverhampton City Council","http://opendatacommunities.org/id/metropolitan-district-council/wolverhampton","706697","Radis Community Care","1012201720171214","56.48","TPP - Home Care","190403141","15/12/2017","Older People Care Purchasing","OP Care Purchasing (Spot Placements)","R5420"
"Wolverhampton City Council","http://opendatacommunities.org/id/metropolitan-district-council/wolverhampton","706697","Radis Community Care","1012201720171214","169.44","TPP - Home Care","190403141","15/12/2017","Older People Care Purchasing","OP Care Purchasing (Spot Placements)","R5420"
"Wolverhampton City Council","http://opendatacommunities.org/id/metropolitan-district-council/wolverhampton","706697","Radis Community Care","1012201720171214","183.56","TPP - Home Care","190403141","15/12/2017","Older People Care Purchasing","OP Care Purchasing (Spot Placements)","R5420"
"Wolverhampton City Council","http://opendatacommunities.org/id/metropolitan-district-council/wolverhampton","706697","Radis Community Care","1012201720171214","225.92","TPP - Home Care","190403141","15/12/2017","Older People Care Purchasing","OP Care Purchasing (Spot Placements)","R5420"
"Wolverhampton City Council","http://opendatacommunities.org/id/metropolitan-district-council/wolverhampton","706697","Radis Community Care","1012201720171214","243.57","TPP - Home Care","190403141","15/12/2017","Older People Care Purchasing","OP Care Purchasing (Spot Placements)","R5420"
"Wolverhampton City Council","http://opendatacommunities.org/id/metropolitan-district-council/wolverhampton","706697","Radis Community Care","1012201720171214","144.73","TPP - Home Care","190403141","15/12/2017","Older People Care Purchasing","OP Care Purchasing (Spot Placements)","R5420"
"Wolverhampton City Council","http://opendatacommunities.org/id/metropolitan-district-council/wolverhampton","706697","Radis Community Care","1012201720171214","35.30","TPP - Home Care","190403141","15/12/2017","Older People Care Purchasing","OP Care Purchasing (Spot Placements)","R5420"
"Wolverhampton City Council","http://opendatacommunities.org/id/metropolitan-district-council/wolverhampton","706697","Radis Community Care","1012201720171214","63.54","TPP - Home Care","190403141","15/12/2017","Older People Care Purchasing","OP Care Purchasing (Spot Placements)","R5420"
"Wolverhampton City Council","http://opendatacommunities.org/id/metropolitan-district-council/wolverhampton","706697","Radis Community Care","1012201720171214","201.21","TPP - Home Care","190403141","15/12/2017","Older People Care Purchasing","OP Care Purchasing (Spot Placements)","R5420"
"Wolverhampton City Council","http://opendatacommunities.org/id/metropolitan-district-council/wolverhampton","706697","Radis Community Care","1012201720171214","91.78","TPP - Home Care","190403141","15/12/2017","Older People Care Purchasing","OP Care Purchasing (Spot Placements)","R5420"
"Wolverhampton City Council","http://opendatacommunities.org/id/metropolitan-district-council/wolverhampton","706697","Radis Community Care","1012201720171214","88.25","TPP - Home Care","190403141","15/12/2017","Older People Care Purchasing","OP Care Purchasing (Spot Placements)","R5420"
"Wolverhampton City Council","http://opendatacommunities.org/id/metropolitan-district-council/wolverhampton","706697","Radis Community Care","1012201720171214","74.13","TPP - Home Care","190403141","15/12/2017","Older People Care Purchasing","OP Care Purchasing (Spot Placements)","R5420"
"Wolverhampton City Council","http://opendatacommunities.org/id/metropolitan-district-council/wolverhampton","706697","Radis Community Care","1012201720171214","187.09","TPP - Home Care","190403141","15/12/2017","Older People Care Purchasing","OP Care Purchasing (Spot Placements)","R5420"
"Wolverhampton City Council","http://opendatacommunities.org/id/metropolitan-district-council/wolverhampton","706697","Radis Community Care","1012201720171214","183.56","TPP - Home Care","190403141","15/12/2017","Older People Care Purchasing","OP Care Purchasing (Spot Placements)","R5420"
"Wolverhampton City Council","http://opendatacommunities.org/id/metropolitan-district-council/wolverhampton","706697","Radis Community Care","1012201720171214","201.21","TPP - Home Care","190403141","15/12/2017","Older People Care Purchasing","OP Care Purchasing (Spot Placements)","R5420"
"Wolverhampton City Council","http://opendatacommunities.org/id/metropolitan-district-council/wolverhampton","706697","Radis Community Care","1012201720171214","112.96","TPP - Home Care","190403141","15/12/2017","Older People Care Purchasing","OP Care Purchasing (Spot Placements)","R5420"
"Wolverhampton City Council","http://opendatacommunities.org/id/metropolitan-district-council/wolverhampton","706697","Radis Community Care","1012201720171214","28.24","TPP - Home Care","190403141","15/12/2017","Older People Care Purchasing","OP Care Purchasing (Spot Placements)","R5420"
"Wolverhampton City Council","http://opendatacommunities.org/id/metropolitan-district-council/wolverhampton","706697","Radis Community Care","1012201720171214","91.78","TPP - Home Care","190403141","15/12/2017","Older People Care Purchasing","OP Care Purchasing (Spot Placements)","R5420"
"Wolverhampton City Council","http://opendatacommunities.org/id/metropolitan-district-council/wolverhampton","706697","Radis Community Care","1012201720171214","88.25","TPP - Home Care","190403141","15/12/2017","Older People Care Purchasing","OP Care Purchasing (Spot Placements)","R5420"
"Wolverhampton City Council","http://opendatacommunities.org/id/metropolitan-district-council/wolverhampton","706705","Rainbow Taxis Limited","5873","1,408.00","Client Transport","130199225","20/12/2017","School Planning & Resources","Student Awards","R3042"
"Wolverhampton City Council","http://opendatacommunities.org/id/metropolitan-district-council/wolverhampton","706705","Rainbow Taxis Limited","5858","1,105.00","Client Transport","130199210","20/12/2017","School Planning & Resources","Special - Transport","R3042"
"Wolverhampton City Council","http://opendatacommunities.org/id/metropolitan-district-council/wolverhampton","706705","Rainbow Taxis Limited","5870","1,694.00","Client Transport","130199222","20/12/2017","School Planning & Resources","Primary - Transport","R3042"
"Wolverhampton City Council","http://opendatacommunities.org/id/metropolitan-district-council/wolverhampton","706705","Rainbow Taxis Limited","5863","1,870.00","Client Transport","130199215","20/12/2017","School Planning & Resources","Special - Transport","R3042"
"Wolverhampton City Council","http://opendatacommunities.org/id/metropolitan-district-council/wolverhampton","706705","Rainbow Taxis Limited","5849","1,834.40","Client Transport","130199205","20/12/2017","School Planning & Resources","Special - Transport","R3042"
"Wolverhampton City Council","http://opendatacommunities.org/id/metropolitan-district-council/wolverhampton","706705","Rainbow Taxis Limited","5853","1,458.60","Client Transport","130199306","21/12/2017","School Planning & Resources","Special - Transport","R3042"
"Wolverhampton City Council","http://opendatacommunities.org/id/metropolitan-district-council/wolverhampton","706705","Rainbow Taxis Limited","5872","1,509.20","Client Transport","130199224","20/12/2017","School Planning & Resources","Special - Transport","R3042"
"Wolverhampton City Council","http://opendatacommunities.org/id/metropolitan-district-council/wolverhampton","706705","Rainbow Taxis Limited","5862","1,870.00","Client Transport","130199214","20/12/2017","School Planning & Resources","Special - Transport","R3042"
"Wolverhampton City Council","http://opendatacommunities.org/id/metropolitan-district-council/wolverhampton","706705","Rainbow Taxis Limited","5864","1,606.00","Client Transport","130199216","20/12/2017","School Planning & Resources","Special - Transport","R3042"
"Wolverhampton City Council","http://opendatacommunities.org/id/metropolitan-district-council/wolverhampton","706705","Rainbow Taxis Limited","5867","1,427.80","Client Transport","130199219","20/12/2017","School Planning & Resources","Special - Transport","R3042"
"Wolverhampton City Council","http://opendatacommunities.org/id/metropolitan-district-council/wolverhampton","706705","Rainbow Taxis Limited","5854","1,533.00","Client Transport","130199206","20/12/2017","School Planning & Resources","Special - Transport","R3042"
"Wolverhampton City Council","http://opendatacommunities.org/id/metropolitan-district-council/wolverhampton","706705","Rainbow Taxis Limited","5852","1,440.70","Client Transport","130199305","21/12/2017","School Planning & Resources","Special - Transport","R3042"
"Wolverhampton City Council","http://opendatacommunities.org/id/metropolitan-district-council/wolverhampton","706705","Rainbow Taxis Limited","5871","1,826.00","Client Transport","130199223","20/12/2017","School Planning & Resources","Primary - Transport","R3042"
"Wolverhampton City Council","http://opendatacommunities.org/id/metropolitan-district-council/wolverhampton","706705","Rainbow Taxis Limited","5857","1,196.00","Client Transport","130199209","20/12/2017","School Planning & Resources","Special - Transport","R3042"
"Wolverhampton City Council","http://opendatacommunities.org/id/metropolitan-district-council/wolverhampton","706705","Rainbow Taxis Limited","5855","1,224.00","Client Transport","130199207","20/12/2017","School Planning & Resources","Special - Transport","R3042"
"Wolverhampton City Council","http://opendatacommunities.org/id/metropolitan-district-council/wolverhampton","706705","Rainbow Taxis Limited","5860","1,892.88","Client Transport","130199212","20/12/2017","School Planning & Resources","Special - Transport","R3042"
"Wolverhampton City Council","http://opendatacommunities.org/id/metropolitan-district-council/wolverhampton","706705","Rainbow Taxis Limited","5861","1,843.80","Client Transport","130199213","20/12/2017","School Planning & Resources","Special - Transport","R3042"
"Wolverhampton City Council","http://opendatacommunities.org/id/metropolitan-district-council/wolverhampton","706705","Rainbow Taxis Limited","5868","1,560.62","Client Transport","130199220","20/12/2017","School Planning & Resources","Special - Transport","R3042"
"Wolverhampton City Council","http://opendatacommunities.org/id/metropolitan-district-council/wolverhampton","706705","Rainbow Taxis Limited","5851","1,694.00","Client Transport","130199304","21/12/2017","School Planning & Resources","Special - Transport","R3042"
"Wolverhampton City Council","http://opendatacommunities.org/id/metropolitan-district-council/wolverhampton","706705","Rainbow Taxis Limited","5874","1,694.00","Client Transport","130199226","20/12/2017","School Planning & Resources","Home to College Transport","R3042"
"Wolverhampton City Council","http://opendatacommunities.org/id/metropolitan-district-council/wolverhampton","706705","Rainbow Taxis Limited","5859","1,226.55","Client Transport","130199211","20/12/2017","School Planning & Resources","Special - Transport","R3042"
"Wolverhampton City Council","http://opendatacommunities.org/id/metropolitan-district-council/wolverhampton","706705","Rainbow Taxis Limited","5856","1,044.00","Client Transport","130199208","20/12/2017","School Planning & Resources","Special - Transport","R3042"
"Wolverhampton City Council","http://opendatacommunities.org/id/metropolitan-district-council/wolverhampton","706705","Rainbow Taxis Limited","5865","1,850.20","Client Transport","130199217","20/12/2017","School Planning & Resources","Primary - Transport","R3042"
"Wolverhampton City Council","http://opendatacommunities.org/id/metropolitan-district-council/wolverhampton","706705","Rainbow Taxis Limited","5869","1,826.00","Client Transport","130199221","20/12/2017","School Planning & Resources","Primary - Transport","R3042"
"Wolverhampton City Council","http://opendatacommunities.org/id/metropolitan-district-council/wolverhampton","706705","Rainbow Taxis Limited","5866","1,458.60","Client Transport","130199218","20/12/2017","School Planning & Resources","Special - Transport","R3042"
"Wolverhampton City Council","http://opendatacommunities.org/id/metropolitan-district-council/wolverhampton","706750","Recycle It 4U Limited","18489","97.50","Equipment - Purchase","130198232","20/12/2017","Independent Living Service","Telecare","R4000"
"Wolverhampton City Council","http://opendatacommunities.org/id/metropolitan-district-council/wolverhampton","706778","Reedsrains","TWU001T721112017","600.00","Rent","130196106","20/12/2017","Child Protection","CIN/CP Social Work Unit - Area 3","R2200"
"Wolverhampton City Council","http://opendatacommunities.org/id/metropolitan-district-council/wolverhampton","706795","Rentokil Initial UK Limited","30043499","1,798.63","R&M - Departmental planned (external)","130199100","15/12/2017","Facilities Management","Magistrates","R2001"
"Wolverhampton City Council","http://opendatacommunities.org/id/metropolitan-district-council/wolverhampton","706795","Rentokil Initial UK Limited","20649472","150.00","Pest Control","130198745","27/12/2017","Adult Education","Caf�","R2702"
"Wolverhampton City Council","http://opendatacommunities.org/id/metropolitan-district-council/wolverhampton","706795","Rentokil Initial UK Limited","20648038","247.50","R&M - Departmental planned (external)","130199904","27/12/2017","Facilities Management","Magistrates","R2001"
"Wolverhampton City Council","http://opendatacommunities.org/id/metropolitan-district-council/wolverhampton","706805","Respond Group Limited Dba Aptean","RI6018-701216","896.65","Computing - Repair and Maint","130199905","28/12/2017","Customer Services","City Direct","R4533"
"Wolverhampton City Council","http://opendatacommunities.org/id/metropolitan-district-council/wolverhampton","706856","Rigby Taylor Limited","RSIN0244295J","1,680.00","Materials","130198746","29/12/2017","Environmental Maintenance","Ground Maintenance West","R4007"
"Wolverhampton City Council","http://opendatacommunities.org/id/metropolitan-district-council/wolverhampton","706856","Rigby Taylor Limited","RSIN0243485","65.00","TPP - Maintenance on Principal Roads","130197283","20/12/2017","Environmental Maintenance","Ground Maintenance East","R5700"
"Wolverhampton City Council","http://opendatacommunities.org/id/metropolitan-district-council/wolverhampton","706856","Rigby Taylor Limited","RSIN0243485","10.00","Comms - Postage","130197283","20/12/2017","Environmental Maintenance","Ground Maintenance East","R4503"
"Wolverhampton City Council","http://opendatacommunities.org/id/metropolitan-district-council/wolverhampton","706856","Rigby Taylor Limited","RSIN0242560","1,346.25","Materials","130195910","06/12/2017","Environmental Maintenance","Ground Maintenance East","R4007"
"Wolverhampton City Council","http://opendatacommunities.org/id/metropolitan-district-council/wolverhampton","706856","Rigby Taylor Limited","RSIN0243482","1,387.50","TPP - Maintenance on Principal Roads","130197282","20/12/2017","Environmental Maintenance","Ground Maintenance West","R5700"
"Wolverhampton City Council","http://opendatacommunities.org/id/metropolitan-district-council/wolverhampton","706861","Eurovia Contracting","5733","234,480.34","Construction and Conversion","130199907","27/12/2017","-","GF - Accessing Growth Fund","C1100"
"Wolverhampton City Council","http://opendatacommunities.org/id/metropolitan-district-council/wolverhampton","706868","Rmc Mechanical Services Limited","A21349CR","-285.72","R&M - Departmental planned (external)","130199307","27/12/2017","Maintenance Programme","Civic Centre Repairs & Maintenance","R2001"
"Wolverhampton City Council","http://opendatacommunities.org/id/metropolitan-district-council/wolverhampton","706868","Rmc Mechanical Services Limited","A21199","8.38","R&M - Departmental planned (external)","130196422","13/12/2017","Maintenance Programme","Centralised R&M","R2001"
"Wolverhampton City Council","http://opendatacommunities.org/id/metropolitan-district-council/wolverhampton","706868","Rmc Mechanical Services Limited","A21199","51.27","R&M - Departmental planned (external)","130196422","13/12/2017","Maintenance Programme","Centralised R&M","R2001"
"Wolverhampton City Council","http://opendatacommunities.org/id/metropolitan-district-council/wolverhampton","706868","Rmc Mechanical Services Limited","A21348","1,166.89","R&M - Departmental planned (external)","130198233","13/12/2017","Maintenance Programme","Civic Centre Repairs & Maintenance","R2001"
"Wolverhampton City Council","http://opendatacommunities.org/id/metropolitan-district-council/wolverhampton","706868","Rmc Mechanical Services Limited","A21199","17.21","R&M - Departmental planned (external)","130196422","13/12/2017","Maintenance Programme","Centralised R&M","R2001"
"Wolverhampton City Council","http://opendatacommunities.org/id/metropolitan-district-council/wolverhampton","706868","Rmc Mechanical Services Limited","A21199","102.50","R&M - Departmental planned (external)","130196422","13/12/2017","Maintenance Programme","Centralised R&M","R2001"
"Wolverhampton City Council","http://opendatacommunities.org/id/metropolitan-district-council/wolverhampton","706868","Rmc Mechanical Services Limited","A21182","486.00","R&M - Departmental planned (external)","130196109","13/12/2017","Maintenance Programme","Centralised R&M","R2001"
"Wolverhampton City Council","http://opendatacommunities.org/id/metropolitan-district-council/wolverhampton","706868","Rmc Mechanical Services Limited","A21364","203.47","R&M - Departmental planned (external)","130198574","13/12/2017","Maintenance Programme","Centralised R&M","R2001"
"Wolverhampton City Council","http://opendatacommunities.org/id/metropolitan-district-council/wolverhampton","706868","Rmc Mechanical Services Limited","A21375","102.50","R&M - Departmental planned (external)","130198751","13/12/2017","Maintenance Programme","Centralised R&M","R2001"
"Wolverhampton City Council","http://opendatacommunities.org/id/metropolitan-district-council/wolverhampton","706868","Rmc Mechanical Services Limited","A21472","1,570.10","R&M - Departmental planned (external)","130199918","29/12/2017","Maintenance Programme","Centralised R&M","R2001"
"Wolverhampton City Council","http://opendatacommunities.org/id/metropolitan-district-council/wolverhampton","706868","Rmc Mechanical Services Limited","A21385","1,121.86","R&M - Departmental planned (external)","130199309","20/12/2017","Early Intervention","HOS Early Intervention","R2001"
"Wolverhampton City Council","http://opendatacommunities.org/id/metropolitan-district-council/wolverhampton","706868","Rmc Mechanical Services Limited","A21329","81.50","R&M - Departmental planned (external)","130198573","15/12/2017","Markets","Wholesale Market Facilities Management","R2001"
"Wolverhampton City Council","http://opendatacommunities.org/id/metropolitan-district-council/wolverhampton","706868","Rmc Mechanical Services Limited","A21238","102.50","R&M - Departmental planned (external)","130197285","01/12/2017","Maintenance Programme","Centralised R&M","R2001"
"Wolverhampton City Council","http://opendatacommunities.org/id/metropolitan-district-council/wolverhampton","706868","Rmc Mechanical Services Limited","A21278","132.64","R&M - Departmental planned (external)","130197085","06/12/2017","Maintenance Programme","Centralised R&M","R2001"
"Wolverhampton City Council","http://opendatacommunities.org/id/metropolitan-district-council/wolverhampton","706868","Rmc Mechanical Services Limited","A21303","2,024.58","Construction and Conversion","130197619","06/12/2017","-","Capital Maintenance - Heating Pipework Upgrades","C1100"
"Wolverhampton City Council","http://opendatacommunities.org/id/metropolitan-district-council/wolverhampton","706868","Rmc Mechanical Services Limited","A21306","366.00","R&M - Departmental planned (external)","130197622","06/12/2017","Maintenance Programme","Centralised R&M","R2001"
"Wolverhampton City Council","http://opendatacommunities.org/id/metropolitan-district-council/wolverhampton","706868","Rmc Mechanical Services Limited","A21176","1,224.00","R&M - Departmental planned (internal)","130195913","06/12/2017","Maintenance Programme","Centralised R&M","R2000"
"Wolverhampton City Council","http://opendatacommunities.org/id/metropolitan-district-council/wolverhampton","706868","Rmc Mechanical Services Limited","A21178","432.00","R&M - Departmental planned (internal)","130195914","06/12/2017","Maintenance Programme","Centralised R&M","R2000"
"Wolverhampton City Council","http://opendatacommunities.org/id/metropolitan-district-council/wolverhampton","706868","Rmc Mechanical Services Limited","A21328","188.69","R&M - Departmental planned (external)","130197820","06/12/2017","Cleaning","Priory Green","R2001"
"Wolverhampton City Council","http://opendatacommunities.org/id/metropolitan-district-council/wolverhampton","706868","Rmc Mechanical Services Limited","A21326","153.75","R&M - Departmental planned (external)","130197818","06/12/2017","Facilities Management","Caretakers Community Centre","R2001"
"Wolverhampton City Council","http://opendatacommunities.org/id/metropolitan-district-council/wolverhampton","706868","Rmc Mechanical Services Limited","A21217A","578.60","R&M - Departmental planned (external)","130197618","01/12/2017","School Planning & Resources","Other Support Services","R2001"
"Wolverhampton City Council","http://opendatacommunities.org/id/metropolitan-district-council/wolverhampton","706868","Rmc Mechanical Services Limited","A21325","595.00","Construction and Conversion","130197817","06/12/2017","-","Electrical Works","C1100"
"Wolverhampton City Council","http://opendatacommunities.org/id/metropolitan-district-council/wolverhampton","706868","Rmc Mechanical Services Limited","A21282","179.63","R&M - Departmental planned (external)","130197089","06/12/2017","Facilities Management","Caretakers Community Centre","R2001"
"Wolverhampton City Council","http://opendatacommunities.org/id/metropolitan-district-council/wolverhampton","706868","Rmc Mechanical Services Limited","A21285","142.76","R&M - Departmental planned (external)","130197092","06/12/2017","Facilities Management","Caretakers Community Centre","R2001"
"Wolverhampton City Council","http://opendatacommunities.org/id/metropolitan-district-council/wolverhampton","706868","Rmc Mechanical Services Limited","A21323","102.50","R&M - Departmental planned (external)","130197815","06/12/2017","Maintenance Programme","Centralised R&M","R2001"
"Wolverhampton City Council","http://opendatacommunities.org/id/metropolitan-district-council/wolverhampton","706868","Rmc Mechanical Services Limited","A21386","209.32","R&M - Departmental planned (external)","130199310","21/12/2017","Facilities Management","Caretakers Community Centre","R2001"
"Wolverhampton City Council","http://opendatacommunities.org/id/metropolitan-district-council/wolverhampton","706868","Rmc Mechanical Services Limited","A21135","54.75","R&M - Departmental planned (external)","130199065","15/12/2017","Visitor Economy","Grand Theatre","R2001"
"Wolverhampton City Council","http://opendatacommunities.org/id/metropolitan-district-council/wolverhampton","706868","Rmc Mechanical Services Limited","20458","4,067.88","R&M - Departmental planned (external)","130199153","20/12/2017","Maintenance Programme","Centralised R&M","R2001"
"Wolverhampton City Council","http://opendatacommunities.org/id/metropolitan-district-council/wolverhampton","706868","Rmc Mechanical Services Limited","A21239","102.50","R&M - Departmental planned (external)","130197286","01/12/2017","Maintenance Programme","Centralised R&M","R2001"
"Wolverhampton City Council","http://opendatacommunities.org/id/metropolitan-district-council/wolverhampton","706868","Rmc Mechanical Services Limited","A21315","165.67","R&M - Departmental planned (external)","130197631","06/12/2017","Maintenance Programme","Centralised R&M","R2001"
"Wolverhampton City Council","http://opendatacommunities.org/id/metropolitan-district-council/wolverhampton","706868","Rmc Mechanical Services Limited","A21173","288.00","R&M - Departmental planned (internal)","130195911","06/12/2017","Maintenance Programme","Centralised R&M","R2000"
"Wolverhampton City Council","http://opendatacommunities.org/id/metropolitan-district-council/wolverhampton","706868","Rmc Mechanical Services Limited","A21308","615.37","R&M - Departmental planned (external)","130197624","06/12/2017","Maintenance Programme","Centralised R&M","R2001"
"Wolverhampton City Council","http://opendatacommunities.org/id/metropolitan-district-council/wolverhampton","706868","Rmc Mechanical Services Limited","A21177","864.00","R&M - Departmental planned (internal)","130195742","06/12/2017","Maintenance Programme","Centralised R&M","R2000"
"Wolverhampton City Council","http://opendatacommunities.org/id/metropolitan-district-council/wolverhampton","706868","Rmc Mechanical Services Limited","A21174","1,224.00","R&M - Departmental planned (internal)","130196107","06/12/2017","Maintenance Programme","Centralised R&M","R2000"
"Wolverhampton City Council","http://opendatacommunities.org/id/metropolitan-district-council/wolverhampton","706868","Rmc Mechanical Services Limited","A21309","376.87","R&M - Departmental planned (external)","130197625","06/12/2017","Maintenance Programme","Centralised R&M","R2001"
"Wolverhampton City Council","http://opendatacommunities.org/id/metropolitan-district-council/wolverhampton","706868","Rmc Mechanical Services Limited","A21309","12.81","R&M - Departmental planned (external)","130197625","06/12/2017","Maintenance Programme","Centralised R&M","R2001"
"Wolverhampton City Council","http://opendatacommunities.org/id/metropolitan-district-council/wolverhampton","706868","Rmc Mechanical Services Limited","A21309","36.51","R&M - Departmental planned (external)","130197625","06/12/2017","Maintenance Programme","Centralised R&M","R2001"
"Wolverhampton City Council","http://opendatacommunities.org/id/metropolitan-district-council/wolverhampton","706868","Rmc Mechanical Services Limited","A21322","134.62","R&M - Departmental planned (external)","130197814","06/12/2017","Maintenance Programme","Centralised R&M","R2001"
"Wolverhampton City Council","http://opendatacommunities.org/id/metropolitan-district-council/wolverhampton","706868","Rmc Mechanical Services Limited","A21279","241.90","R&M - Departmental planned (external)","130197086","06/12/2017","Facilities Management","Caretakers Community Centre","R2001"
"Wolverhampton City Council","http://opendatacommunities.org/id/metropolitan-district-council/wolverhampton","706868","Rmc Mechanical Services Limited","A21280","152.06","R&M - Departmental planned (external)","130197087","06/12/2017","Facilities Management","Caretakers Community Centre","R2001"
"Wolverhampton City Council","http://opendatacommunities.org/id/metropolitan-district-council/wolverhampton","706868","Rmc Mechanical Services Limited","20459","12,542.18","R&M - Departmental planned (external)","130197617","06/12/2017","Maintenance Programme","Centralised R&M","R2001"
"Wolverhampton City Council","http://opendatacommunities.org/id/metropolitan-district-council/wolverhampton","706868","Rmc Mechanical Services Limited","A21166","1,224.00","R&M - Departmental planned (internal)","130195737","27/12/2017","Maintenance Programme","Centralised R&M","R2000"
"Wolverhampton City Council","http://opendatacommunities.org/id/metropolitan-district-council/wolverhampton","706868","Rmc Mechanical Services Limited","A21214","435.62","R&M - Departmental planned (external)","130196560","13/12/2017","Maintenance Programme","Centralised R&M","R2001"
"Wolverhampton City Council","http://opendatacommunities.org/id/metropolitan-district-council/wolverhampton","706868","Rmc Mechanical Services Limited","A21365","563.75","R&M - Departmental planned (external)","130198575","13/12/2017","Maintenance Programme","Centralised R&M","R2001"
"Wolverhampton City Council","http://opendatacommunities.org/id/metropolitan-district-council/wolverhampton","706868","Rmc Mechanical Services Limited","A21367","146.00","R&M - Departmental planned (external)","130198577","13/12/2017","Maintenance Programme","Centralised R&M","R2001"
"Wolverhampton City Council","http://opendatacommunities.org/id/metropolitan-district-council/wolverhampton","706868","Rmc Mechanical Services Limited","A21347","8,925.00","Construction and Conversion","130198747","13/12/2017","-","Boiler / Pipework Replacements","C1100"
"Wolverhampton City Council","http://opendatacommunities.org/id/metropolitan-district-council/wolverhampton","706868","Rmc Mechanical Services Limited","A21353","3,686.10","R&M - Departmental planned (external)","130198409","13/12/2017","Facilities Management","Magistrates","R2001"
"Wolverhampton City Council","http://opendatacommunities.org/id/metropolitan-district-council/wolverhampton","706868","Rmc Mechanical Services Limited","A21319","102.50","R&M - Departmental planned (external)","130198920","13/12/2017","Maintenance Programme","Centralised R&M","R2001"
"Wolverhampton City Council","http://opendatacommunities.org/id/metropolitan-district-council/wolverhampton","706868","Rmc Mechanical Services Limited","A21473","180.84","R&M - Departmental planned (external)","130199919","29/12/2017","Maintenance Programme","Centralised R&M","R2001"
"Wolverhampton City Council","http://opendatacommunities.org/id/metropolitan-district-council/wolverhampton","706868","Rmc Mechanical Services Limited","A21305","40,000.00","Construction and Conversion","130197621","06/12/2017","-","Corporate Asset Management","C1100"
"Wolverhampton City Council","http://opendatacommunities.org/id/metropolitan-district-council/wolverhampton","706868","Rmc Mechanical Services Limited","A21284","205.00","R&M - Departmental planned (external)","130197091","06/12/2017","Facilities Management","Caretakers Community Centre","R2001"
"Wolverhampton City Council","http://opendatacommunities.org/id/metropolitan-district-council/wolverhampton","706868","Rmc Mechanical Services Limited","A21281","161.03","R&M - Departmental planned (external)","130197088","06/12/2017","Facilities Management","Caretakers Community Centre","R2001"
"Wolverhampton City Council","http://opendatacommunities.org/id/metropolitan-district-council/wolverhampton","706868","Rmc Mechanical Services Limited","A21327","454.17","R&M - Departmental planned (external)","130197819","06/12/2017","Facilities Management","Bilston Town Hall","R2001"
"Wolverhampton City Council","http://opendatacommunities.org/id/metropolitan-district-council/wolverhampton","706868","Rmc Mechanical Services Limited","A21316","410.00","R&M - Departmental planned (external)","130197632","06/12/2017","Maintenance Programme","Centralised R&M","R2001"
"Wolverhampton City Council","http://opendatacommunities.org/id/metropolitan-district-council/wolverhampton","706868","Rmc Mechanical Services Limited","A21313","174.74","R&M - Departmental planned (external)","130197629","06/12/2017","Maintenance Programme","Centralised R&M","R2001"
"Wolverhampton City Council","http://opendatacommunities.org/id/metropolitan-district-council/wolverhampton","706868","Rmc Mechanical Services Limited","A21310","116.32","R&M - Departmental planned (external)","130197626","06/12/2017","Maintenance Programme","Centralised R&M","R2001"
"Wolverhampton City Council","http://opendatacommunities.org/id/metropolitan-district-council/wolverhampton","706868","Rmc Mechanical Services Limited","A21388","201.36","R&M - Departmental planned (external)","130199312","20/12/2017","Maintenance Programme","Centralised R&M","R2001"
"Wolverhampton City Council","http://opendatacommunities.org/id/metropolitan-district-council/wolverhampton","706868","Rmc Mechanical Services Limited","A21387","596.31","R&M - Departmental planned (external)","130199311","20/12/2017","Maintenance Programme","Centralised R&M","R2001"
"Wolverhampton City Council","http://opendatacommunities.org/id/metropolitan-district-council/wolverhampton","706868","Rmc Mechanical Services Limited","20457","3,144.02","R&M - Departmental planned (external)","130199154","15/12/2017","Maintenance Programme","Centralised R&M","R2001"
"Wolverhampton City Council","http://opendatacommunities.org/id/metropolitan-district-council/wolverhampton","706868","Rmc Mechanical Services Limited","A21374","113.56","R&M - Departmental planned (external)","130198750","15/12/2017","Facilities Management","Hickman Avenue Depot","R2001"
"Wolverhampton City Council","http://opendatacommunities.org/id/metropolitan-district-council/wolverhampton","706868","Rmc Mechanical Services Limited","A21246","102.50","R&M - Departmental planned (external)","130197287","01/12/2017","Maintenance Programme","Centralised R&M","R2001"
"Wolverhampton City Council","http://opendatacommunities.org/id/metropolitan-district-council/wolverhampton","706868","Rmc Mechanical Services Limited","A21474","102.50","R&M - Departmental planned (external)","130199920","29/12/2017","Maintenance Programme","Centralised R&M","R2001"
"Wolverhampton City Council","http://opendatacommunities.org/id/metropolitan-district-council/wolverhampton","706868","Rmc Mechanical Services Limited","A21690","177.85","R&M - Departmental planned (external)","130199421","27/12/2017","Maintenance Programme","Centralised R&M","R2001"
"Wolverhampton City Council","http://opendatacommunities.org/id/metropolitan-district-council/wolverhampton","706868","Rmc Mechanical Services Limited","A21350","5,351.22","R&M - Departmental planned (external)","130198235","13/12/2017","Maintenance Programme","Centralised R&M","R2001"
"Wolverhampton City Council","http://opendatacommunities.org/id/metropolitan-district-council/wolverhampton","706868","Rmc Mechanical Services Limited","A21351","719.81","R&M - Departmental planned (external)","130198407","13/12/2017","Facilities Management","Culwell Street Depot","R2001"
"Wolverhampton City Council","http://opendatacommunities.org/id/metropolitan-district-council/wolverhampton","706868","Rmc Mechanical Services Limited","20448A","44.37","R&M - Departmental planned (external)","130192947","13/12/2017","Maintenance Programme","Centralised R&M","R2001"
"Wolverhampton City Council","http://opendatacommunities.org/id/metropolitan-district-council/wolverhampton","706868","Rmc Mechanical Services Limited","A21181","102.50","R&M - Departmental planned (external)","130196108","13/12/2017","Maintenance Programme","Centralised R&M","R2001"
"Wolverhampton City Council","http://opendatacommunities.org/id/metropolitan-district-council/wolverhampton","706868","Rmc Mechanical Services Limited","A21181","128.13","R&M - Departmental planned (external)","130196108","13/12/2017","Maintenance Programme","Centralised R&M","R2001"
"Wolverhampton City Council","http://opendatacommunities.org/id/metropolitan-district-council/wolverhampton","706868","Rmc Mechanical Services Limited","A21181","159.32","R&M - Departmental planned (external)","130196108","13/12/2017","Maintenance Programme","Centralised R&M","R2001"
"Wolverhampton City Council","http://opendatacommunities.org/id/metropolitan-district-council/wolverhampton","706868","Rmc Mechanical Services Limited","A21181","71.28","R&M - Departmental planned (external)","130196108","13/12/2017","Maintenance Programme","Centralised R&M","R2001"
"Wolverhampton City Council","http://opendatacommunities.org/id/metropolitan-district-council/wolverhampton","706868","Rmc Mechanical Services Limited","A21181","102.52","R&M - Departmental planned (external)","130196108","13/12/2017","Maintenance Programme","Centralised R&M","R2001"
"Wolverhampton City Council","http://opendatacommunities.org/id/metropolitan-district-council/wolverhampton","706868","Rmc Mechanical Services Limited","A21371","331.65","R&M - Departmental planned (external)","130198748","13/12/2017","Facilities Management","Magistrates","R2001"
"Wolverhampton City Council","http://opendatacommunities.org/id/metropolitan-district-council/wolverhampton","706868","Rmc Mechanical Services Limited","A21321","102.50","R&M - Departmental planned (external)","130198921","13/12/2017","Maintenance Programme","Centralised R&M","R2001"
"Wolverhampton City Council","http://opendatacommunities.org/id/metropolitan-district-council/wolverhampton","706868","Rmc Mechanical Services Limited","A21373","152.58","R&M - Departmental planned (external)","130199369","27/12/2017","Facilities Management","Hickman Avenue Depot","R2001"
"Wolverhampton City Council","http://opendatacommunities.org/id/metropolitan-district-council/wolverhampton","706868","Rmc Mechanical Services Limited","A21330","3,500.00","R&M - Departmental planned (external)","130198047","13/12/2017","Facilities Management","Magistrates","R2001"
"Wolverhampton City Council","http://opendatacommunities.org/id/metropolitan-district-council/wolverhampton","706868","Rmc Mechanical Services Limited","A21048","289.00","R&M - Departmental planned (external)","130192455","13/12/2017","Maintenance Programme","Centralised R&M","R2001"
"Wolverhampton City Council","http://opendatacommunities.org/id/metropolitan-district-council/wolverhampton","706868","Rmc Mechanical Services Limited","A21304","448.01","R&M - Departmental planned (external)","130197620","13/12/2017","Maintenance Programme","Centralised R&M","R2001"
"Wolverhampton City Council","http://opendatacommunities.org/id/metropolitan-district-council/wolverhampton","706868","Rmc Mechanical Services Limited","A21304","51.27","R&M - Departmental planned (external)","130197620","13/12/2017","Maintenance Programme","Centralised R&M","R2001"
"Wolverhampton City Council","http://opendatacommunities.org/id/metropolitan-district-council/wolverhampton","706868","Rmc Mechanical Services Limited","A21304","25.62","R&M - Departmental planned (external)","130197620","13/12/2017","Maintenance Programme","Centralised R&M","R2001"
"Wolverhampton City Council","http://opendatacommunities.org/id/metropolitan-district-council/wolverhampton","706868","Rmc Mechanical Services Limited","A21304","0.01","R&M - Departmental planned (external)","130197620","13/12/2017","Maintenance Programme","Centralised R&M","R2001"
"Wolverhampton City Council","http://opendatacommunities.org/id/metropolitan-district-council/wolverhampton","706868","Rmc Mechanical Services Limited","A21304","0.01","R&M - Departmental planned (external)","130197620","13/12/2017","Maintenance Programme","Centralised R&M","R2001"
"Wolverhampton City Council","http://opendatacommunities.org/id/metropolitan-district-council/wolverhampton","706868","Rmc Mechanical Services Limited","A21352","131.85","R&M - Departmental planned (external)","130198408","13/12/2017","Learning Disability Provider","City Links","R2001"
"Wolverhampton City Council","http://opendatacommunities.org/id/metropolitan-district-council/wolverhampton","706868","Rmc Mechanical Services Limited","A21369","896.87","R&M - Departmental planned (external)","130198578","13/12/2017","Maintenance Programme","Centralised R&M","R2001"
"Wolverhampton City Council","http://opendatacommunities.org/id/metropolitan-district-council/wolverhampton","706868","Rmc Mechanical Services Limited","A21304","13.19","R&M - Departmental planned (external)","130197620","13/12/2017","Maintenance Programme","Centralised R&M","R2001"
"Wolverhampton City Council","http://opendatacommunities.org/id/metropolitan-district-council/wolverhampton","706868","Rmc Mechanical Services Limited","A21304","0.01","R&M - Departmental planned (external)","130197620","13/12/2017","Maintenance Programme","Centralised R&M","R2001"
"Wolverhampton City Council","http://opendatacommunities.org/id/metropolitan-district-council/wolverhampton","706868","Rmc Mechanical Services Limited","A21464","1,024.98","R&M - Departmental planned (external)","130199917","29/12/2017","Maintenance Programme","Centralised R&M","R2001"
"Wolverhampton City Council","http://opendatacommunities.org/id/metropolitan-district-council/wolverhampton","706868","Rmc Mechanical Services Limited","A21250","72.33","R&M - Departmental planned (external)","130196784","08/12/2017","Maintenance Programme","Centralised R&M","R2001"
"Wolverhampton City Council","http://opendatacommunities.org/id/metropolitan-district-council/wolverhampton","706868","Rmc Mechanical Services Limited","A21366","1,054.15","R&M - Departmental planned (external)","130198576","20/12/2017","Maintenance Programme","Centralised R&M","R2001"
"Wolverhampton City Council","http://opendatacommunities.org/id/metropolitan-district-council/wolverhampton","706868","Rmc Mechanical Services Limited","A21370","235.41","R&M - Departmental planned (external)","130198579","15/12/2017","Facilities Management","Management of Vacant Properties","R2001"
"Wolverhampton City Council","http://opendatacommunities.org/id/metropolitan-district-council/wolverhampton","706868","Rmc Mechanical Services Limited","A21349","2,253.48","R&M - Departmental planned (external)","130198234","15/12/2017","Maintenance Programme","Civic Centre Repairs & Maintenance","R2001"
"Wolverhampton City Council","http://opendatacommunities.org/id/metropolitan-district-council/wolverhampton","706868","Rmc Mechanical Services Limited","A21320","505.44","R&M - Departmental planned (external)","130197813","06/12/2017","Maintenance Programme","Centralised R&M","R2001"
"Wolverhampton City Council","http://opendatacommunities.org/id/metropolitan-district-council/wolverhampton","706868","Rmc Mechanical Services Limited","A21247","102.50","R&M - Departmental planned (external)","130197288","06/12/2017","Facilities Management","Caretakers Community Centre","R2001"
"Wolverhampton City Council","http://opendatacommunities.org/id/metropolitan-district-council/wolverhampton","706868","Rmc Mechanical Services Limited","A21283","121.62","R&M - Departmental planned (external)","130197090","06/12/2017","Facilities Management","Caretakers Community Centre","R2001"
"Wolverhampton City Council","http://opendatacommunities.org/id/metropolitan-district-council/wolverhampton","706868","Rmc Mechanical Services Limited","A21318","128.12","R&M - Departmental planned (external)","130197812","06/12/2017","Maintenance Programme","Centralised R&M","R2001"
"Wolverhampton City Council","http://opendatacommunities.org/id/metropolitan-district-council/wolverhampton","706868","Rmc Mechanical Services Limited","A21324","1,529.00","R&M - Departmental planned (external)","130197816","06/12/2017","Maintenance Programme","Centralised R&M","R2001"
"Wolverhampton City Council","http://opendatacommunities.org/id/metropolitan-district-council/wolverhampton","706868","Rmc Mechanical Services Limited","A21314","436.26","R&M - Departmental planned (external)","130197630","06/12/2017","Maintenance Programme","Centralised R&M","R2001"
"Wolverhampton City Council","http://opendatacommunities.org/id/metropolitan-district-council/wolverhampton","706868","Rmc Mechanical Services Limited","A21317","676.14","R&M - Departmental planned (external)","130197633","06/12/2017","Maintenance Programme","Centralised R&M","R2001"
"Wolverhampton City Council","http://opendatacommunities.org/id/metropolitan-district-council/wolverhampton","706868","Rmc Mechanical Services Limited","A21312","190.44","R&M - Departmental planned (external)","130197628","06/12/2017","Maintenance Programme","Centralised R&M","R2001"
"Wolverhampton City Council","http://opendatacommunities.org/id/metropolitan-district-council/wolverhampton","706868","Rmc Mechanical Services Limited","A21311","147.68","R&M - Departmental planned (external)","130197627","06/12/2017","Maintenance Programme","Centralised R&M","R2001"
"Wolverhampton City Council","http://opendatacommunities.org/id/metropolitan-district-council/wolverhampton","706868","Rmc Mechanical Services Limited","A21307","348.00","R&M - Departmental planned (external)","130197623","06/12/2017","Maintenance Programme","Centralised R&M","R2001"
"Wolverhampton City Council","http://opendatacommunities.org/id/metropolitan-district-council/wolverhampton","706868","Rmc Mechanical Services Limited","A21233","160.37","R&M - Departmental planned (external)","130196576","06/12/2017","Maintenance Programme","Centralised R&M","R2001"
"Wolverhampton City Council","http://opendatacommunities.org/id/metropolitan-district-council/wolverhampton","706868","Rmc Mechanical Services Limited","A21249","102.50","R&M - Departmental planned (external)","130197289","01/12/2017","Facilities Management","Bilston Town Hall","R2001"
"Wolverhampton City Council","http://opendatacommunities.org/id/metropolitan-district-council/wolverhampton","706935","Royal Mail","9055560053","462.43","Comms - Postage","130196948","15/12/2017","Strategic Director Place","Business Manager - Place","R4503"
"Wolverhampton City Council","http://opendatacommunities.org/id/metropolitan-district-council/wolverhampton","706935","Royal Mail","2731766","508.00","Equipment - Purchase","130197093","13/12/2017","Bereavement Services","Coroners","R4000"
"Wolverhampton City Council","http://opendatacommunities.org/id/metropolitan-district-council/wolverhampton","706935","Royal Mail","9055477021","114.48","Comms - Postage","130195193","01/12/2017","Business Support","People�s Business Support","R4503"
"Wolverhampton City Council","http://opendatacommunities.org/id/metropolitan-district-council/wolverhampton","706935","Royal Mail","9055477021","-114.48","Comms - Postage","130195193","01/12/2017","Business Support","People�s Business Support","R4503"
"Wolverhampton City Council","http://opendatacommunities.org/id/metropolitan-district-council/wolverhampton","706935","Royal Mail","9055477021","114.48","Comms - Postage","130195193","01/12/2017","Business Support","People�s Business Support","R4503"
"Wolverhampton City Council","http://opendatacommunities.org/id/metropolitan-district-council/wolverhampton","706936","Royal Mail Group PLC","9055682340","1,088.97","Comms - Postage","190404314","20/12/2017","Democratic Services","Electoral Registration","R4503"
"Wolverhampton City Council","http://opendatacommunities.org/id/metropolitan-district-council/wolverhampton","706936","Royal Mail Group PLC","9055526479","1,636.66","Comms - Postage","130196280","13/12/2017","ICTS","Document Centre - General","R4503"
"Wolverhampton City Council","http://opendatacommunities.org/id/metropolitan-district-council/wolverhampton","706936","Royal Mail Group PLC","9055585214","1,175.66","Comms - Postage","130197634","27/12/2017","Revenues & Benefits","Revenues","R4503"
"Wolverhampton City Council","http://opendatacommunities.org/id/metropolitan-district-council/wolverhampton","706936","Royal Mail Group PLC","9055501770","1,334.70","Comms - Postage","130196116","08/12/2017","Revenues & Benefits","Revenues","R4503"
"Wolverhampton City Council","http://opendatacommunities.org/id/metropolitan-district-council/wolverhampton","706936","Royal Mail Group PLC","9055514471","1,390.40","Comms - Postage","190398710","01/12/2017","Democratic Services","Electoral Registration","R4503"
"Wolverhampton City Council","http://opendatacommunities.org/id/metropolitan-district-council/wolverhampton","706936","Royal Mail Group PLC","9055542239","1,584.19","Comms - Postage","130196949","15/12/2017","Revenues & Benefits","Revenues","R4503"
"Wolverhampton City Council","http://opendatacommunities.org/id/metropolitan-district-council/wolverhampton","706936","Royal Mail Group PLC","9055645397","19.28","Comms - Postage","190404313","20/12/2017","Democratic Services","Electoral Registration","R4503"
"Wolverhampton City Council","http://opendatacommunities.org/id/metropolitan-district-council/wolverhampton","706936","Royal Mail Group PLC","Inv No: 9055518340","1.53","Stationery","190401810","13/12/2017","Housing Revenue Account","Tenancy Sustainment","R4308"
"Wolverhampton City Council","http://opendatacommunities.org/id/metropolitan-district-council/wolverhampton","706936","Royal Mail Group PLC","9055511168","5.85","Comms - Postage","130197290","08/12/2017","Human Resources","HR Advice","R4503"
"Wolverhampton City Council","http://opendatacommunities.org/id/metropolitan-district-council/wolverhampton","706936","Royal Mail Group PLC","9055502379","2,595.65","Comms - Postage","130196117","08/12/2017","Revenues & Benefits","Revenues","R4503"
"Wolverhampton City Council","http://opendatacommunities.org/id/metropolitan-district-council/wolverhampton","706936","Royal Mail Group PLC","9055502379","-2,595.65","Comms - Postage","130196117","08/12/2017","Revenues & Benefits","Revenues","R4503"
"Wolverhampton City Council","http://opendatacommunities.org/id/metropolitan-district-council/wolverhampton","706936","Royal Mail Group PLC","9055502379","2,591.37","Comms - Postage","130196117","08/12/2017","Revenues & Benefits","Revenues","R4503"
"Wolverhampton City Council","http://opendatacommunities.org/id/metropolitan-district-council/wolverhampton","706936","Royal Mail Group PLC","9055502379","4.28","Comms - Postage","130196117","08/12/2017","Revenues & Benefits","Revenues","R4503"
"Wolverhampton City Council","http://opendatacommunities.org/id/metropolitan-district-council/wolverhampton","706936","Royal Mail Group PLC","9055571493","1,328.29","Comms - Postage","130197094","20/12/2017","ICTS","Document Centre - General","R4503"
"Wolverhampton City Council","http://opendatacommunities.org/id/metropolitan-district-council/wolverhampton","706936","Royal Mail Group PLC","9055571938","166.82","Comms - Postage","190398711","01/12/2017","Democratic Services","Electoral Registration","R4503"
"Wolverhampton City Council","http://opendatacommunities.org/id/metropolitan-district-council/wolverhampton","706936","Royal Mail Group PLC","9055481415","1,163.11","Comms - Postage","130195194","06/12/2017","ICTS","Document Centre - General","R4503"
"Wolverhampton City Council","http://opendatacommunities.org/id/metropolitan-district-council/wolverhampton","706936","Royal Mail Group PLC","9055605606","2,029.22","Comms - Postage","130197822","27/12/2017","ICTS","Document Centre - General","R4503"
"Wolverhampton City Council","http://opendatacommunities.org/id/metropolitan-district-council/wolverhampton","706936","Royal Mail Group PLC","9055498510","55.05","Comms - Postage","130195915","08/12/2017","Revenues & Benefits","Revenues","R4503"
"Wolverhampton City Council","http://opendatacommunities.org/id/metropolitan-district-council/wolverhampton","706936","Royal Mail Group PLC","9055511807","0.78","Comms - Postage","130195916","08/12/2017","Catering","Education Catering - General Overheads","R4503"
"Wolverhampton City Council","http://opendatacommunities.org/id/metropolitan-district-council/wolverhampton","706936","Royal Mail Group PLC","9055511807","0.78","Comms - Postage","130195916","08/12/2017","Cleaning","Cleaning of Buildings - General","R4503"
"Wolverhampton City Council","http://opendatacommunities.org/id/metropolitan-district-council/wolverhampton","706936","Royal Mail Group PLC","9055578553","52.00","Comms - Postage","190398712","01/12/2017","Democratic Services","Electoral Registration","R4503"
"Wolverhampton City Council","http://opendatacommunities.org/id/metropolitan-district-council/wolverhampton","706936","Royal Mail Group PLC","9055497351","3.00","Comms - Postage","130195745","06/12/2017","Revenues & Benefits","Revenues","R4503"
"Wolverhampton City Council","http://opendatacommunities.org/id/metropolitan-district-council/wolverhampton","706936","Royal Mail Group PLC","9055497351","3.00","Comms - Postage","130195745","06/12/2017","Revenues & Benefits","Revenues","R4503"
"Wolverhampton City Council","http://opendatacommunities.org/id/metropolitan-district-council/wolverhampton","706936","Royal Mail Group PLC","9055497351","-3.00","Comms - Postage","130195745","06/12/2017","Revenues & Benefits","Revenues","R4503"
"Wolverhampton City Council","http://opendatacommunities.org/id/metropolitan-district-council/wolverhampton","706936","Royal Mail Group PLC","1109318412","107.75","Comms - Postage","130197821","21/12/2017","Adult Education","Service Wide","R4503"
"Wolverhampton City Council","http://opendatacommunities.org/id/metropolitan-district-council/wolverhampton","706943","Royal Wolverhampton  Hospitals NHS Trust","0000207082","4,950.00","TPP - Payments to Local Authorities","130183899","13/12/2017","Adults Assessment & Care Management West","Hospital Team","R5100"
"Wolverhampton City Council","http://opendatacommunities.org/id/metropolitan-district-council/wolverhampton","706965","Ruskin Mill Trust-Glasshouse College","SIN001113","28,477.71","TPP - Alternative Provision of Education","130197823","27/12/2017","Standards and Vulnerable Pupils","Post 16 SEN Provision","R5037"
"Wolverhampton City Council","http://opendatacommunities.org/id/metropolitan-district-council/wolverhampton","706987","S B Waste Management & Recycling Limited","107936","2,082.56","Waste Management","130198580","27/12/2017","Highways Maintenance","Patching","R2703"
"Wolverhampton City Council","http://opendatacommunities.org/id/metropolitan-district-council/wolverhampton","706987","S B Waste Management & Recycling Limited","104267","92.00","TPP - Waste Disposal","130183471","08/12/2017","Environmental Maintenance","Direct Schools","R5003"
"Wolverhampton City Council","http://opendatacommunities.org/id/metropolitan-district-council/wolverhampton","706987","S B Waste Management & Recycling Limited","107939","142.00","TPP - Waste Disposal","130198583","27/12/2017","Leisure Services","Aldersley Leisure Village","R5003"
"Wolverhampton City Council","http://opendatacommunities.org/id/metropolitan-district-council/wolverhampton","706987","S B Waste Management & Recycling Limited","107940","380.64","TPP - Waste Disposal","130198584","27/12/2017","Independent Living Service","Independent Living Service","R5003"
"Wolverhampton City Council","http://opendatacommunities.org/id/metropolitan-district-council/wolverhampton","706987","S B Waste Management & Recycling Limited","107938","0.01","Waste Management","130198582","27/12/2017","Highways Maintenance","Patching","R2703"
"Wolverhampton City Council","http://opendatacommunities.org/id/metropolitan-district-council/wolverhampton","706987","S B Waste Management & Recycling Limited","107938","157.99","Waste Management","130198582","27/12/2017","Highways Maintenance","Patching","R2703"
"Wolverhampton City Council","http://opendatacommunities.org/id/metropolitan-district-council/wolverhampton","706987","S B Waste Management & Recycling Limited","107937","346.00","TPP - Waste Disposal","130198581","27/12/2017","Leisure Services","Central Baths","R5003"
"Wolverhampton City Council","http://opendatacommunities.org/id/metropolitan-district-council/wolverhampton","707008","S M  Builders","17/0011/DFD","9,000.00","Grants paid out","190400790","08/12/2017","-","Disabled Facilities Grants","C5000"
"Wolverhampton City Council","http://opendatacommunities.org/id/metropolitan-district-council/wolverhampton","707008","S M  Builders","17/0153/DFG","4,470.00","Grants paid out","190403361","15/12/2017","-","Disabled Facilities Grants","C5000"
"Wolverhampton City Council","http://opendatacommunities.org/id/metropolitan-district-council/wolverhampton","707023","S. & J. Pritchard Landscapes Limited","143","375.00","R&M - Departmental response (external)","130198924","20/12/2017","Environmental Maintenance","Management & Administration","R2003"
"Wolverhampton City Council","http://opendatacommunities.org/id/metropolitan-district-council/wolverhampton","707023","S. & J. Pritchard Landscapes Limited","143","225.00","R&M - Departmental response (external)","130198924","20/12/2017","Environmental Maintenance","Management & Administration","R2003"
"Wolverhampton City Council","http://opendatacommunities.org/id/metropolitan-district-council/wolverhampton","707023","S. & J. Pritchard Landscapes Limited","144","350.00","R&M - Departmental planned (external)","130198925","20/12/2017","Environmental Maintenance","Parks / Open Spaces - Repairs & Maintenance","R2001"
"Wolverhampton City Council","http://opendatacommunities.org/id/metropolitan-district-council/wolverhampton","707023","S. & J. Pritchard Landscapes Limited","148","260.00","R&M - Departmental response (external)","130199358","27/12/2017","Environmental Maintenance","Parks - South West Area Management","R2003"
"Wolverhampton City Council","http://opendatacommunities.org/id/metropolitan-district-council/wolverhampton","707023","S. & J. Pritchard Landscapes Limited","139","350.00","R&M - Departmental response (external)","130197824","13/12/2017","Environmental Maintenance","Parks - East Area Management","R2003"
"Wolverhampton City Council","http://opendatacommunities.org/id/metropolitan-district-council/wolverhampton","707023","S. & J. Pritchard Landscapes Limited","149","425.00","R&M - Departmental response (external)","130199359","27/12/2017","Environmental Maintenance","Parks - East Area Management","R2003"
"Wolverhampton City Council","http://opendatacommunities.org/id/metropolitan-district-council/wolverhampton","707023","S. & J. Pritchard Landscapes Limited","147","190.00","R&M - Departmental response (external)","130199090","20/12/2017","Environmental Maintenance","Parks - South West Area Management","R2003"
"Wolverhampton City Council","http://opendatacommunities.org/id/metropolitan-district-council/wolverhampton","707023","S. & J. Pritchard Landscapes Limited","142","365.00","Construction and Conversion","130198923","20/12/2017","-","Parks Strategy and Open Space","C1100"
"Wolverhampton City Council","http://opendatacommunities.org/id/metropolitan-district-council/wolverhampton","707023","S. & J. Pritchard Landscapes Limited","141","540.00","R&M - Departmental response (external)","130198922","20/12/2017","Environmental Maintenance","Parks / Open Spaces - Repairs & Maintenance","R2003"
"Wolverhampton City Council","http://opendatacommunities.org/id/metropolitan-district-council/wolverhampton","707023","S. & J. Pritchard Landscapes Limited","145","215.00","R&M - Departmental response (external)","130198926","20/12/2017","Environmental Maintenance","Parks - East Area Management","R2003"
"Wolverhampton City Council","http://opendatacommunities.org/id/metropolitan-district-council/wolverhampton","707023","S. & J. Pritchard Landscapes Limited","140","2,491.50","Cleaning Supplies and Materials","130197825","13/12/2017","Environmental Maintenance","Ground Maintenance East","R2705"
"Wolverhampton City Council","http://opendatacommunities.org/id/metropolitan-district-council/wolverhampton","707023","S. & J. Pritchard Landscapes Limited","146","625.00","R&M - Departmental response (external)","130198927","20/12/2017","Environmental Maintenance","Parks - South West Area Management","R2003"
"Wolverhampton City Council","http://opendatacommunities.org/id/metropolitan-district-council/wolverhampton","707034","S.S Gill - A. Singh & S.S.Gill","1220","9,058.45","Insurances - Premises","130198585","08/12/2017","Visitor Economy","The Little Civic","R2800"
"Wolverhampton City Council","http://opendatacommunities.org/id/metropolitan-district-council/wolverhampton","707035","S.S. Sidhu","0440","167.25","Books","130196582","06/12/2017","Strategic Organisation Development","Reference Library","R4309"
"Wolverhampton City Council","http://opendatacommunities.org/id/metropolitan-district-council/wolverhampton","707035","S.S. Sidhu","0442","172.45","Books","130198236","20/12/2017","Strategic Organisation Development","Reference Library","R4309"
"Wolverhampton City Council","http://opendatacommunities.org/id/metropolitan-district-council/wolverhampton","707035","S.S. Sidhu","0441","154.22","Books","130196583","13/12/2017","Strategic Organisation Development","Reference Library","R4309"
"Wolverhampton City Council","http://opendatacommunities.org/id/metropolitan-district-council/wolverhampton","707035","S.S. Sidhu","0443","169.40","Books","130198237","27/12/2017","Strategic Organisation Development","Reference Library","R4309"
"Wolverhampton City Council","http://opendatacommunities.org/id/metropolitan-district-council/wolverhampton","707037","S.T.Churchware","2017201","48.60","R&M - Departmental planned (external)","130191363","27/12/2017","Bereavement Services","Crematorium","R2001"
"Wolverhampton City Council","http://opendatacommunities.org/id/metropolitan-district-council/wolverhampton","707037","S.T.Churchware","2017201","-48.60","R&M - Departmental planned (external)","130191363","27/12/2017","Bereavement Services","Crematorium","R2001"
"Wolverhampton City Council","http://opendatacommunities.org/id/metropolitan-district-council/wolverhampton","707037","S.T.Churchware","2017201","48.60","R&M - Departmental planned (external)","130191363","27/12/2017","Bereavement Services","Crematorium","R2001"
"Wolverhampton City Council","http://opendatacommunities.org/id/metropolitan-district-council/wolverhampton","707047","Safda Mahmood Limited","1848","516.00","Training Expenses","130198586","08/12/2017","Human Resources","Centralised Training","R1650"
"Wolverhampton City Council","http://opendatacommunities.org/id/metropolitan-district-council/wolverhampton","707069","Compasss Minerals UK Ltd","459716","123.60","Materials","130199228","20/12/2017","Markets","Wolverhampton Indoor and Open Market","R4007"
"Wolverhampton City Council","http://opendatacommunities.org/id/metropolitan-district-council/wolverhampton","707069","Compasss Minerals UK Ltd","459715","370.80","Materials","130199227","20/12/2017","Markets","Bilston Market and Licensed Operations","R4007"
"Wolverhampton City Council","http://opendatacommunities.org/id/metropolitan-district-council/wolverhampton","707077","Sanctuary Personnel Limited","INV00236029","1,332.00","Agency Staff","130198931","20/12/2017","Child Protection","MASH","R1100"
"Wolverhampton City Council","http://opendatacommunities.org/id/metropolitan-district-council/wolverhampton","707077","Sanctuary Personnel Limited","INV00233732","1,424.50","Agency Staff","130198049","06/12/2017","Child Protection","MASH","R1100"
"Wolverhampton City Council","http://opendatacommunities.org/id/metropolitan-district-council/wolverhampton","707077","Sanctuary Personnel Limited","INV00233738","15.28","Agency Staff","130198055","13/12/2017","Child Protection","MASH","R1100"
"Wolverhampton City Council","http://opendatacommunities.org/id/metropolitan-district-council/wolverhampton","707077","Sanctuary Personnel Limited","INV00233736","1,420.80","Agency Staff","130198053","13/12/2017","Child Protection","MASH","R1100"
"Wolverhampton City Council","http://opendatacommunities.org/id/metropolitan-district-council/wolverhampton","707077","Sanctuary Personnel Limited","INV00236026","1,424.50","Agency Staff","130198928","20/12/2017","Child Protection","MASH","R1100"
"Wolverhampton City Council","http://opendatacommunities.org/id/metropolitan-district-council/wolverhampton","707077","Sanctuary Personnel Limited","INV00233733","20.48","Agency Staff","130198050","06/12/2017","Child Protection","MASH","R1100"
"Wolverhampton City Council","http://opendatacommunities.org/id/metropolitan-district-council/wolverhampton","707077","Sanctuary Personnel Limited","INV00231332","1,080.00","Agency Staff","130197098","13/12/2017","Child Protection","MASH","R1100"
"Wolverhampton City Council","http://opendatacommunities.org/id/metropolitan-district-council/wolverhampton","707077","Sanctuary Personnel Limited","INV00233731","1,836.00","Agency Staff","130198048","13/12/2017","Child Protection","MASH","R1100"
"Wolverhampton City Council","http://opendatacommunities.org/id/metropolitan-district-council/wolverhampton","707077","Sanctuary Personnel Limited","INV00233737","25.88","Agency Staff","130198054","13/12/2017","Child Protection","MASH","R1100"
"Wolverhampton City Council","http://opendatacommunities.org/id/metropolitan-district-council/wolverhampton","707077","Sanctuary Personnel Limited","INV00229771","1,332.00","Agency Staff","130197637","13/12/2017","Child Protection","MASH","R1100"
"Wolverhampton City Council","http://opendatacommunities.org/id/metropolitan-district-council/wolverhampton","707077","Sanctuary Personnel Limited","INV00236028","10.88","Agency Staff","130198930","20/12/2017","Child Protection","MASH","R1100"
"Wolverhampton City Council","http://opendatacommunities.org/id/metropolitan-district-council/wolverhampton","707077","Sanctuary Personnel Limited","INV00229770","14.48","Agency Staff","130197636","06/12/2017","Child Protection","MASH","R1100"
"Wolverhampton City Council","http://opendatacommunities.org/id/metropolitan-district-council/wolverhampton","707077","Sanctuary Personnel Limited","INV00236027","1,332.00","Agency Staff","130198929","15/12/2017","Child Protection","MASH","R1100"
"Wolverhampton City Council","http://opendatacommunities.org/id/metropolitan-district-council/wolverhampton","707077","Sanctuary Personnel Limited","INV00229769","1,424.50","Agency Staff","130197635","06/12/2017","Child Protection","MASH","R1100"
"Wolverhampton City Council","http://opendatacommunities.org/id/metropolitan-district-council/wolverhampton","707077","Sanctuary Personnel Limited","INV00233734","1,332.00","Agency Staff","130198051","13/12/2017","Child Protection","MASH","R1100"
"Wolverhampton City Council","http://opendatacommunities.org/id/metropolitan-district-council/wolverhampton","707077","Sanctuary Personnel Limited","INV00233735","57.40","Agency Staff","130198052","13/12/2017","Child Protection","MASH","R1100"
"Wolverhampton City Council","http://opendatacommunities.org/id/metropolitan-district-council/wolverhampton","707088","Sandwich","110","72.00","Equipment - Purchase","130198239","08/12/2017","Headstart","Headstart - Young People Engagement","R4000"
"Wolverhampton City Council","http://opendatacommunities.org/id/metropolitan-district-council/wolverhampton","707121","Schneider Electric Limited","97921839","1,250.42","R&M - Departmental planned (internal)","130199229","27/12/2017","Maintenance Programme","Civic Centre Repairs & Maintenance","R2000"
"Wolverhampton City Council","http://opendatacommunities.org/id/metropolitan-district-council/wolverhampton","707131","School Merit Stickers","246184","21.30","Equipment - Purchase","130198128","06/12/2017","Schools","St Michael�s Church of England Primary School","R4000"
"Wolverhampton City Council","http://opendatacommunities.org/id/metropolitan-district-council/wolverhampton","707162","Scottish Power PLC","623001413206","57.59","Electricity","190405438","21/12/2017","Corporate Asset Management","Central Utilities to Recharge","R2100"
"Wolverhampton City Council","http://opendatacommunities.org/id/metropolitan-district-council/wolverhampton","707162","Scottish Power PLC","SP028-88096351011","60.47","Electricity","190401811","13/12/2017","Housing Revenue Account","Hostels / Outreach","R2100"
"Wolverhampton City Council","http://opendatacommunities.org/id/metropolitan-district-council/wolverhampton","707164","Scribes Plus Limited","9704","1,250.00","Services - Professional Fees","130195372","06/12/2017","Democratic Services","Mayoral Expenses","R4400"
"Wolverhampton City Council","http://opendatacommunities.org/id/metropolitan-district-council/wolverhampton","707164","Scribes Plus Limited","9709","100.00","Materials","130196584","15/12/2017","Bereavement Services","Crematorium","R4007"
"Wolverhampton City Council","http://opendatacommunities.org/id/metropolitan-district-council/wolverhampton","707172","Seawhite Of Brighton","INV543286","88.90","Equipment - Purchase","130198360","27/12/2017","Adult Education","Creative Studies Delivery Area","R4000"
"Wolverhampton City Council","http://opendatacommunities.org/id/metropolitan-district-council/wolverhampton","707172","Seawhite Of Brighton","INV543286","-88.90","Equipment - Purchase","130198360","27/12/2017","Adult Education","Creative Studies Delivery Area","R4000"
"Wolverhampton City Council","http://opendatacommunities.org/id/metropolitan-district-council/wolverhampton","707172","Seawhite Of Brighton","INV543286","95.90","Equipment - Purchase","130198360","27/12/2017","Adult Education","Creative Studies Delivery Area","R4000"
"Wolverhampton City Council","http://opendatacommunities.org/id/metropolitan-district-council/wolverhampton","707172","Seawhite Of Brighton","INV543287","137.50","Equipment - Purchase","130198361","27/12/2017","Adult Education","Creative Studies Delivery Area","R4000"
"Wolverhampton City Council","http://opendatacommunities.org/id/metropolitan-district-council/wolverhampton","707185","Security Plus Limited","18813","-47.00","Services - Security","130199015","27/12/2017","The Hub","Cash in Transit (Operational Finance)","R4405"
"Wolverhampton City Council","http://opendatacommunities.org/id/metropolitan-district-council/wolverhampton","707185","Security Plus Limited","646023","88.19","Services - Security","130199313","27/12/2017","The Hub","Cash in Transit (Operational Finance)","R4405"
"Wolverhampton City Council","http://opendatacommunities.org/id/metropolitan-district-council/wolverhampton","707185","Security Plus Limited","645595","9.46","Services - Security","130199018","27/12/2017","Leisure Services","Bert Williams Leisure Centre","R4405"
"Wolverhampton City Council","http://opendatacommunities.org/id/metropolitan-district-council/wolverhampton","707185","Security Plus Limited","645595","9.46","Services - Security","130199018","27/12/2017","Leisure Services","Aldersley Leisure Village","R4405"
"Wolverhampton City Council","http://opendatacommunities.org/id/metropolitan-district-council/wolverhampton","707185","Security Plus Limited","643903","2,780.22","Services - Security","130198056","27/12/2017","The Hub","Cash in Transit (Operational Finance)","R4405"
"Wolverhampton City Council","http://opendatacommunities.org/id/metropolitan-district-council/wolverhampton","707185","Security Plus Limited","18791","-165.62","Services - Security","130197826","27/12/2017","The Hub","Cash in Transit (Operational Finance)","R4405"
"Wolverhampton City Council","http://opendatacommunities.org/id/metropolitan-district-council/wolverhampton","707185","Security Plus Limited","645592","9.46","Services - Security","130199092","27/12/2017","Leisure Services","Bert Williams Leisure Centre","R4405"
"Wolverhampton City Council","http://opendatacommunities.org/id/metropolitan-district-council/wolverhampton","707185","Security Plus Limited","645592","9.46","Services - Security","130199092","27/12/2017","Leisure Services","Aldersley Leisure Village","R4405"
"Wolverhampton City Council","http://opendatacommunities.org/id/metropolitan-district-council/wolverhampton","707185","Security Plus Limited","645594","37.84","Services - Security","130199017","27/12/2017","Housing Revenue Account","HRA General","R4405"
"Wolverhampton City Council","http://opendatacommunities.org/id/metropolitan-district-council/wolverhampton","707185","Security Plus Limited","645593","18.92","Services - Security","130199093","27/12/2017","Visitor Economy","Bantock House Museum","R4405"
"Wolverhampton City Council","http://opendatacommunities.org/id/metropolitan-district-council/wolverhampton","707185","Security Plus Limited","645591","104.06","Services - Security","130199016","27/12/2017","Housing Revenue Account","HRA General","R4405"
"Wolverhampton City Council","http://opendatacommunities.org/id/metropolitan-district-council/wolverhampton","707185","Security Plus Limited","643905","20.00","Services - Security","130198058","27/12/2017","The Hub","Banking","R4405"
"Wolverhampton City Council","http://opendatacommunities.org/id/metropolitan-district-council/wolverhampton","707185","Security Plus Limited","646588","1,051.35","Services - Security","130199230","27/12/2017","Parking Services","On Street Parking","R4405"
"Wolverhampton City Council","http://opendatacommunities.org/id/metropolitan-district-council/wolverhampton","707185","Security Plus Limited","643904","1,797.75","Services - Security","130198057","27/12/2017","The Hub","Cash in Transit (Operational Finance)","R4405"
"Wolverhampton City Council","http://opendatacommunities.org/id/metropolitan-district-council/wolverhampton","707191","Seesaws Day Nursery","A Hodor (Penn) Enhanced Funding Sum 17","1,000.00","Grant Payments","190403416","15/12/2017","Early Years","Early Years SEN Inclusion Fund","R4700"
"Wolverhampton City Council","http://opendatacommunities.org/id/metropolitan-district-council/wolverhampton","707191","Seesaws Day Nursery","Merridale EYPP Autumn 2017","333.90","TPP - Private Nursery Education Funding","190404361","20/12/2017","Early Years","Early Years Pupil Premium","R5035"
"Wolverhampton City Council","http://opendatacommunities.org/id/metropolitan-district-council/wolverhampton","707191","Seesaws Day Nursery","Penn TFT Autumn 2017 Inst 2","9,180.48","Grant Payments","190404269","20/12/2017","Early Years","Early Years Entitlement Funding for Disadvantaged 2 Year Olds","R4700"
"Wolverhampton City Council","http://opendatacommunities.org/id/metropolitan-district-council/wolverhampton","707191","Seesaws Day Nursery","Merridale NEF Autumn 2017 INST 2","16,406.50","TPP - Private Nursery Education Funding","190403407","15/12/2017","Early Years","Early Years Universal Entitlement for 3 and 4 Year Olds","R5035"
"Wolverhampton City Council","http://opendatacommunities.org/id/metropolitan-district-council/wolverhampton","707191","Seesaws Day Nursery","Penn NEF Autumn 2017 INST 2","11,454.50","TPP - Private Nursery Education Funding","190403408","15/12/2017","Early Years","Early Years Universal Entitlement for 3 and 4 Year Olds","R5035"
"Wolverhampton City Council","http://opendatacommunities.org/id/metropolitan-district-council/wolverhampton","707191","Seesaws Day Nursery","Merridale TFT Autumn 2017 Inst 2","3,442.68","Grant Payments","190404270","20/12/2017","Early Years","Early Years Entitlement Funding for Disadvantaged 2 Year Olds","R4700"
"Wolverhampton City Council","http://opendatacommunities.org/id/metropolitan-district-council/wolverhampton","707195","Select & Save Wolverhampton Limited","WANEWS 043","86.00","Books","130196950","06/12/2017","Strategic Organisation Development","Warstones Library","R4309"
"Wolverhampton City Council","http://opendatacommunities.org/id/metropolitan-district-council/wolverhampton","707196","Select Alarm Systems Limited","84829","146.00","Services - Security","130195373","01/12/2017","Maintenance Programme","Centralised R&M","R4405"
"Wolverhampton City Council","http://opendatacommunities.org/id/metropolitan-district-council/wolverhampton","707196","Select Alarm Systems Limited","84931","38.50","Fixtures and Fittings - R&M","130198591","21/12/2017","Adult Education","Direct Delivery Team ( L.& D.)","R2502"
"Wolverhampton City Council","http://opendatacommunities.org/id/metropolitan-district-council/wolverhampton","707196","Select Alarm Systems Limited","84931","52.80","Fixtures and Fittings - R&M","130198591","21/12/2017","Youth Offending","Youth Offending Team","R2502"
"Wolverhampton City Council","http://opendatacommunities.org/id/metropolitan-district-council/wolverhampton","707196","Select Alarm Systems Limited","84931","18.70","Fixtures and Fittings - R&M","130198591","21/12/2017","Adults Assessment & Care Management East","Assessment Team (East)","R2502"
"Wolverhampton City Council","http://opendatacommunities.org/id/metropolitan-district-council/wolverhampton","707196","Select Alarm Systems Limited","84516","68.60","Fixtures and Fittings - R&M","130198587","21/12/2017","Adult Education","Direct Delivery Team ( L.& D.)","R2502"
"Wolverhampton City Council","http://opendatacommunities.org/id/metropolitan-district-council/wolverhampton","707196","Select Alarm Systems Limited","84516","94.08","Fixtures and Fittings - R&M","130198587","21/12/2017","Youth Offending","Youth Offending Team","R2502"
"Wolverhampton City Council","http://opendatacommunities.org/id/metropolitan-district-council/wolverhampton","707196","Select Alarm Systems Limited","84516","33.32","Fixtures and Fittings - R&M","130198587","21/12/2017","Adults Assessment & Care Management East","Assessment Team (East)","R2502"
"Wolverhampton City Council","http://opendatacommunities.org/id/metropolitan-district-council/wolverhampton","707196","Select Alarm Systems Limited","87394","4,500.00","R&M - Departmental planned (external)","130199979","28/12/2017","Bereavement Services","Cemeteries","R2001"
"Wolverhampton City Council","http://opendatacommunities.org/id/metropolitan-district-council/wolverhampton","707196","Select Alarm Systems Limited","86166","101.00","Services - Security","130199976","27/12/2017","Maintenance Programme","Centralised R&M","R4405"
"Wolverhampton City Council","http://opendatacommunities.org/id/metropolitan-district-council/wolverhampton","707196","Select Alarm Systems Limited","85689","431.00","Services - Security","130199974","28/12/2017","Maintenance Programme","Centralised R&M","R4405"
"Wolverhampton City Council","http://opendatacommunities.org/id/metropolitan-district-council/wolverhampton","707196","Select Alarm Systems Limited","87250","50.00","Services - Security","130198411","13/12/2017","Maintenance Programme","Centralised R&M","R4405"
"Wolverhampton City Council","http://opendatacommunities.org/id/metropolitan-district-council/wolverhampton","707196","Select Alarm Systems Limited","87250","51.00","Services - Security","130198411","13/12/2017","Maintenance Programme","Centralised R&M","R4405"
"Wolverhampton City Council","http://opendatacommunities.org/id/metropolitan-district-council/wolverhampton","707196","Select Alarm Systems Limited","87252","101.00","Services - Security","130198413","08/12/2017","Maintenance Programme","Centralised R&M","R4405"
"Wolverhampton City Council","http://opendatacommunities.org/id/metropolitan-district-council/wolverhampton","707196","Select Alarm Systems Limited","85528","105.00","Services - Security","130198754","20/12/2017","Maintenance Programme","Centralised R&M","R4405"
"Wolverhampton City Council","http://opendatacommunities.org/id/metropolitan-district-council/wolverhampton","707196","Select Alarm Systems Limited","85828","47.60","Fixtures and Fittings - R&M","130198594","21/12/2017","Adult Education","Direct Delivery Team ( L.& D.)","R2502"
"Wolverhampton City Council","http://opendatacommunities.org/id/metropolitan-district-council/wolverhampton","707196","Select Alarm Systems Limited","85828","65.28","Fixtures and Fittings - R&M","130198594","21/12/2017","Youth Offending","Youth Offending Team","R2502"
"Wolverhampton City Council","http://opendatacommunities.org/id/metropolitan-district-council/wolverhampton","707196","Select Alarm Systems Limited","85828","23.12","Fixtures and Fittings - R&M","130198594","21/12/2017","Adults Assessment & Care Management East","Assessment Team (East)","R2502"
"Wolverhampton City Council","http://opendatacommunities.org/id/metropolitan-district-council/wolverhampton","707196","Select Alarm Systems Limited","84869","119.00","Fixtures and Fittings - R&M","130198590","21/12/2017","Adult Education","Direct Delivery Team ( L.& D.)","R2502"
"Wolverhampton City Council","http://opendatacommunities.org/id/metropolitan-district-council/wolverhampton","707196","Select Alarm Systems Limited","84869","163.20","Fixtures and Fittings - R&M","130198590","21/12/2017","Youth Offending","Youth Offending Team","R2502"
"Wolverhampton City Council","http://opendatacommunities.org/id/metropolitan-district-council/wolverhampton","707196","Select Alarm Systems Limited","84869","57.80","Fixtures and Fittings - R&M","130198590","21/12/2017","Adults Assessment & Care Management East","Assessment Team (East)","R2502"
"Wolverhampton City Council","http://opendatacommunities.org/id/metropolitan-district-council/wolverhampton","707196","Select Alarm Systems Limited","84844","151.00","Services - Security","130198752","20/12/2017","Maintenance Programme","Centralised R&M","R4405"
"Wolverhampton City Council","http://opendatacommunities.org/id/metropolitan-district-council/wolverhampton","707196","Select Alarm Systems Limited","87103","49.44","Fixtures and Fittings - R&M","130197291","06/12/2017","Youth Offending","Youth Offending Team","R2502"
"Wolverhampton City Council","http://opendatacommunities.org/id/metropolitan-district-council/wolverhampton","707196","Select Alarm Systems Limited","87103","17.51","Fixtures and Fittings - R&M","130197291","06/12/2017","Adults Assessment & Care Management East","Assessment Team (East)","R2502"
"Wolverhampton City Council","http://opendatacommunities.org/id/metropolitan-district-council/wolverhampton","707196","Select Alarm Systems Limited","87103","36.05","Fixtures and Fittings - R&M","130197291","06/12/2017","Adult Education","Direct Delivery Team ( L.& D.)","R2502"
"Wolverhampton City Council","http://opendatacommunities.org/id/metropolitan-district-council/wolverhampton","707196","Select Alarm Systems Limited","85655","24.82","Fixtures and Fittings - R&M","130198592","21/12/2017","Adults Assessment & Care Management East","Assessment Team (East)","R2502"
"Wolverhampton City Council","http://opendatacommunities.org/id/metropolitan-district-council/wolverhampton","707196","Select Alarm Systems Limited","85655","51.10","Fixtures and Fittings - R&M","130198592","21/12/2017","Adult Education","Direct Delivery Team ( L.& D.)","R2502"
"Wolverhampton City Council","http://opendatacommunities.org/id/metropolitan-district-council/wolverhampton","707196","Select Alarm Systems Limited","85655","70.08","Fixtures and Fittings - R&M","130198592","21/12/2017","Youth Offending","Youth Offending Team","R2502"
"Wolverhampton City Council","http://opendatacommunities.org/id/metropolitan-district-council/wolverhampton","707196","Select Alarm Systems Limited","84192","36.75","Fixtures and Fittings - R&M","130199020","21/12/2017","Adult Education","Direct Delivery Team ( L.& D.)","R2502"
"Wolverhampton City Council","http://opendatacommunities.org/id/metropolitan-district-council/wolverhampton","707196","Select Alarm Systems Limited","84192","50.40","Fixtures and Fittings - R&M","130199020","21/12/2017","Youth Offending","Youth Offending Team","R2502"
"Wolverhampton City Council","http://opendatacommunities.org/id/metropolitan-district-council/wolverhampton","707196","Select Alarm Systems Limited","84192","17.85","Fixtures and Fittings - R&M","130199020","21/12/2017","Adults Assessment & Care Management East","Assessment Team (East)","R2502"
"Wolverhampton City Council","http://opendatacommunities.org/id/metropolitan-district-council/wolverhampton","707196","Select Alarm Systems Limited","84550","35.35","Fixtures and Fittings - R&M","130198588","21/12/2017","Adult Education","Direct Delivery Team ( L.& D.)","R2502"
"Wolverhampton City Council","http://opendatacommunities.org/id/metropolitan-district-council/wolverhampton","707196","Select Alarm Systems Limited","84550","48.48","Fixtures and Fittings - R&M","130198588","21/12/2017","Youth Offending","Youth Offending Team","R2502"
"Wolverhampton City Council","http://opendatacommunities.org/id/metropolitan-district-council/wolverhampton","707196","Select Alarm Systems Limited","84550","17.17","Fixtures and Fittings - R&M","130198588","21/12/2017","Adults Assessment & Care Management East","Assessment Team (East)","R2502"
"Wolverhampton City Council","http://opendatacommunities.org/id/metropolitan-district-council/wolverhampton","707196","Select Alarm Systems Limited","87249","101.00","Services - Security","130198410","08/12/2017","Maintenance Programme","Centralised R&M","R4405"
"Wolverhampton City Council","http://opendatacommunities.org/id/metropolitan-district-council/wolverhampton","707196","Select Alarm Systems Limited","84849","101.00","Services - Security","130198753","20/12/2017","Maintenance Programme","Centralised R&M","R4405"
"Wolverhampton City Council","http://opendatacommunities.org/id/metropolitan-district-council/wolverhampton","707196","Select Alarm Systems Limited","85714","38.85","Fixtures and Fittings - R&M","130198593","21/12/2017","Adult Education","Direct Delivery Team ( L.& D.)","R2502"
"Wolverhampton City Council","http://opendatacommunities.org/id/metropolitan-district-council/wolverhampton","707196","Select Alarm Systems Limited","85714","53.28","Fixtures and Fittings - R&M","130198593","21/12/2017","Youth Offending","Youth Offending Team","R2502"
"Wolverhampton City Council","http://opendatacommunities.org/id/metropolitan-district-council/wolverhampton","707196","Select Alarm Systems Limited","85714","18.87","Fixtures and Fittings - R&M","130198593","21/12/2017","Adults Assessment & Care Management East","Assessment Team (East)","R2502"
"Wolverhampton City Council","http://opendatacommunities.org/id/metropolitan-district-council/wolverhampton","707196","Select Alarm Systems Limited","84571","35.35","Fixtures and Fittings - R&M","130198589","21/12/2017","Adult Education","Direct Delivery Team ( L.& D.)","R2502"
"Wolverhampton City Council","http://opendatacommunities.org/id/metropolitan-district-council/wolverhampton","707196","Select Alarm Systems Limited","85827","31.85","Fixtures and Fittings - R&M","130199021","21/12/2017","Adult Education","Direct Delivery Team ( L.& D.)","R2502"
"Wolverhampton City Council","http://opendatacommunities.org/id/metropolitan-district-council/wolverhampton","707196","Select Alarm Systems Limited","84571","48.48","Fixtures and Fittings - R&M","130198589","21/12/2017","Youth Offending","Youth Offending Team","R2502"
"Wolverhampton City Council","http://opendatacommunities.org/id/metropolitan-district-council/wolverhampton","707196","Select Alarm Systems Limited","84571","17.17","Fixtures and Fittings - R&M","130198589","21/12/2017","Adults Assessment & Care Management East","Assessment Team (East)","R2502"
"Wolverhampton City Council","http://opendatacommunities.org/id/metropolitan-district-council/wolverhampton","707196","Select Alarm Systems Limited","85827","43.68","Fixtures and Fittings - R&M","130199021","21/12/2017","Youth Offending","Youth Offending Team","R2502"
"Wolverhampton City Council","http://opendatacommunities.org/id/metropolitan-district-council/wolverhampton","707196","Select Alarm Systems Limited","85827","15.47","Fixtures and Fittings - R&M","130199021","21/12/2017","Adults Assessment & Care Management East","Assessment Team (East)","R2502"
"Wolverhampton City Council","http://opendatacommunities.org/id/metropolitan-district-council/wolverhampton","707196","Select Alarm Systems Limited","86167","136.00","Services - Security","130198755","13/12/2017","Maintenance Programme","Centralised R&M","R4405"
"Wolverhampton City Council","http://opendatacommunities.org/id/metropolitan-district-council/wolverhampton","707196","Select Alarm Systems Limited","87251","101.00","Services - Security","130198412","08/12/2017","Maintenance Programme","Centralised R&M","R4405"
"Wolverhampton City Council","http://opendatacommunities.org/id/metropolitan-district-council/wolverhampton","707213","Sellick Partnership Group Limited","INV211913","1,727.00","Agency Staff","130197101","06/12/2017","Legal Services","Legal Services","R1100"
"Wolverhampton City Council","http://opendatacommunities.org/id/metropolitan-district-council/wolverhampton","707213","Sellick Partnership Group Limited","INV212531","1,749.00","Agency Staff","130198059","13/12/2017","Legal Services","Legal Services","R1100"
"Wolverhampton City Council","http://opendatacommunities.org/id/metropolitan-district-council/wolverhampton","707213","Sellick Partnership Group Limited","INV213524","1,639.00","Agency Staff","130199280","21/12/2017","Legal Services","Legal Services","R1100"
"Wolverhampton City Council","http://opendatacommunities.org/id/metropolitan-district-council/wolverhampton","707224","Sensory Technology Limited","131713","4,061.70","Construction and Conversion","130198241","08/12/2017","-","Adaptations for People with Disabilites","C1100"
"Wolverhampton City Council","http://opendatacommunities.org/id/metropolitan-district-council/wolverhampton","707228","Senwod Contracting Limited","SI - 11419","1,550.00","Grounds Maintenance - Contract","130198933","15/12/2017","Environmental Maintenance","Ground Maintenance West","R2075"
"Wolverhampton City Council","http://opendatacommunities.org/id/metropolitan-district-council/wolverhampton","707228","Senwod Contracting Limited","SI - 11383","4,450.00","Grounds Maintenance - Contract","130198242","08/12/2017","Environmental Maintenance","Ground Maintenance West","R2075"
"Wolverhampton City Council","http://opendatacommunities.org/id/metropolitan-district-council/wolverhampton","707228","Senwod Contracting Limited","SI -11355","1,300.00","Grounds Maintenance - Contract","130198243","08/12/2017","Environmental Maintenance","Ground Maintenance West","R2075"
"Wolverhampton City Council","http://opendatacommunities.org/id/metropolitan-district-council/wolverhampton","707228","Senwod Contracting Limited","SI - 11418","3,150.00","Grounds Maintenance - Contract","130198932","15/12/2017","Environmental Maintenance","Ground Maintenance East","R2075"
"Wolverhampton City Council","http://opendatacommunities.org/id/metropolitan-district-council/wolverhampton","707234","Services4Schools Ltd","5874","65.00","Training Expenses","130197738","06/12/2017","Schools","Uplands Junior School","R1650"
"Wolverhampton City Council","http://opendatacommunities.org/id/metropolitan-district-council/wolverhampton","707257","SG World Limited","30744736","1,199.00","Equipment - Purchase","130196283","13/12/2017","Early Intervention","EIP Locality 5 � Whitmore Reans","R4000"
"Wolverhampton City Council","http://opendatacommunities.org/id/metropolitan-district-council/wolverhampton","707257","SG World Limited","30745340","1,199.00","Equipment - Purchase","130196951","20/12/2017","Early Intervention","EIP Locality 5 � Whitmore Reans","R4000"
"Wolverhampton City Council","http://opendatacommunities.org/id/metropolitan-district-council/wolverhampton","707257","SG World Limited","30738494","208.00","Computing - Purchase of Hardware","130198346","06/12/2017","Schools","Woodthorne Primary School","R4530"
"Wolverhampton City Council","http://opendatacommunities.org/id/metropolitan-district-council/wolverhampton","707257","SG World Limited","30738494","6.00","Comms - Postage","130198346","06/12/2017","Schools","Woodthorne Primary School","R4503"
"Wolverhampton City Council","http://opendatacommunities.org/id/metropolitan-district-council/wolverhampton","707257","SG World Limited","30745717","206.70","Equipment - Purchase","130197638","27/12/2017","Early Intervention","EIP Locality 5 � Whitmore Reans","R4000"
"Wolverhampton City Council","http://opendatacommunities.org/id/metropolitan-district-council/wolverhampton","707279","Shelley Signs Limited","23084","295.00","Equipment - Purchase","130198244","27/12/2017","Environmental Maintenance","Parks / Open Spaces - Repairs & Maintenance","R4000"
"Wolverhampton City Council","http://opendatacommunities.org/id/metropolitan-district-council/wolverhampton","707296","Shropshire Council","SEN000869","47,500.00","TPP - Payments to Local Authorities","130196284","01/12/2017","Head of Commissioning","Commissioning Disabilities","R5100"
"Wolverhampton City Council","http://opendatacommunities.org/id/metropolitan-district-council/wolverhampton","707303","Sico Europe Limited","INV0117257","169.80","Equipment - Purchase","130198414","08/12/2017","Catering","Education Catering - General Overheads","R4000"
"Wolverhampton City Council","http://opendatacommunities.org/id/metropolitan-district-council/wolverhampton","707307","Siemens Financial Services Limited","244/18/0042090","258.67","Equipment - Hire","130196791","15/12/2017","Adult Education","Beckminster","R4001"
"Wolverhampton City Council","http://opendatacommunities.org/id/metropolitan-district-council/wolverhampton","707320","Signpost Solutions Limited T/A Signfix","242337","1,782.88","Materials","130198060","06/12/2017","Street Lighting","Signs Illuminated","R4007"
"Wolverhampton City Council","http://opendatacommunities.org/id/metropolitan-district-council/wolverhampton","707320","Signpost Solutions Limited T/A Signfix","242337","-1,782.88","Materials","130198060","06/12/2017","Street Lighting","Signs Illuminated","R4007"
"Wolverhampton City Council","http://opendatacommunities.org/id/metropolitan-district-council/wolverhampton","707320","Signpost Solutions Limited T/A Signfix","242337","1,783.60","Materials","130198060","06/12/2017","Street Lighting","Signs Illuminated","R4007"
"Wolverhampton City Council","http://opendatacommunities.org/id/metropolitan-district-council/wolverhampton","707346","Sintons Llp","TP140275/ER2 Your ref: 135794.001","360.00","Insurance - General","190401917","13/12/2017","Audit Services","Legal Liability","R4962"
"Wolverhampton City Council","http://opendatacommunities.org/id/metropolitan-district-council/wolverhampton","707353","Sitewatch Fire Surveillance Limited","44407","785.89","Fixtures and Fittings - R&M","130199991","27/12/2017","Facilities Management","Victoria Square, Block 11","R2502"
"Wolverhampton City Council","http://opendatacommunities.org/id/metropolitan-district-council/wolverhampton","707356","SJ Cleaning (Midlands) Limited","WCC 1718/09","4,559.60","Window Cleaning","130198415","13/12/2017","Facilities Management","Civic Centre","R2701"
"Wolverhampton City Council","http://opendatacommunities.org/id/metropolitan-district-council/wolverhampton","707386","Smile Education Recruitment","INV000921","344.00","Grant Payments","130197448","20/12/2017","Early Intervention","EIP Locality 7 � Low Hill","R4700"
"Wolverhampton City Council","http://opendatacommunities.org/id/metropolitan-district-council/wolverhampton","707386","Smile Education Recruitment","INV000921","-344.00","Grant Payments","130197448","20/12/2017","Early Intervention","EIP Locality 7 � Low Hill","R4700"
"Wolverhampton City Council","http://opendatacommunities.org/id/metropolitan-district-council/wolverhampton","707386","Smile Education Recruitment","INV000921","344.00","Grant Payments","130197448","20/12/2017","Early Intervention","EIP Locality 7 � Low Hill","R4700"
"Wolverhampton City Council","http://opendatacommunities.org/id/metropolitan-district-council/wolverhampton","707386","Smile Education Recruitment","INV000760","303.53","Grant Payments","130196793","13/12/2017","Early Intervention","EIP Locality 7 � Low Hill","R4700"
"Wolverhampton City Council","http://opendatacommunities.org/id/metropolitan-district-council/wolverhampton","707386","Smile Education Recruitment","INV000760","-303.53","Grant Payments","130196793","13/12/2017","Early Intervention","EIP Locality 7 � Low Hill","R4700"
"Wolverhampton City Council","http://opendatacommunities.org/id/metropolitan-district-council/wolverhampton","707386","Smile Education Recruitment","INV000760","303.53","Grant Payments","130196793","13/12/2017","Early Intervention","EIP Locality 7 � Low Hill","R4700"
"Wolverhampton City Council","http://opendatacommunities.org/id/metropolitan-district-council/wolverhampton","707386","Smile Education Recruitment","INV001091","303.53","Grant Payments","130198416","27/12/2017","Early Intervention","EIP Locality 7 � Low Hill","R4700"
"Wolverhampton City Council","http://opendatacommunities.org/id/metropolitan-district-council/wolverhampton","707386","Smile Education Recruitment","INV001091","-303.53","Grant Payments","130198416","27/12/2017","Early Intervention","EIP Locality 7 � Low Hill","R4700"
"Wolverhampton City Council","http://opendatacommunities.org/id/metropolitan-district-council/wolverhampton","707386","Smile Education Recruitment","INV001091","303.53","Grant Payments","130198416","27/12/2017","Early Intervention","EIP Locality 7 � Low Hill","R4700"
"Wolverhampton City Council","http://opendatacommunities.org/id/metropolitan-district-council/wolverhampton","707386","Smile Education Recruitment","INV000472","121.41","Grant Payments","130195920","06/12/2017","Early Intervention","EIP Locality 8 � Children�s Village","R4700"
"Wolverhampton City Council","http://opendatacommunities.org/id/metropolitan-district-council/wolverhampton","707386","Smile Education Recruitment","INV000472","-121.41","Grant Payments","130195920","06/12/2017","Early Intervention","EIP Locality 8 � Children�s Village","R4700"
"Wolverhampton City Council","http://opendatacommunities.org/id/metropolitan-district-council/wolverhampton","707386","Smile Education Recruitment","INV000472","121.41","Grant Payments","130195920","06/12/2017","Early Intervention","EIP Locality 8 � Children�s Village","R4700"
"Wolverhampton City Council","http://opendatacommunities.org/id/metropolitan-district-council/wolverhampton","707386","Smile Education Recruitment","INV000926","121.41","Grant Payments","130197828","20/12/2017","Early Intervention","EIP Locality 8 � Children�s Village","R4700"
"Wolverhampton City Council","http://opendatacommunities.org/id/metropolitan-district-council/wolverhampton","707386","Smile Education Recruitment","INV000926","-121.41","Grant Payments","130197828","20/12/2017","Early Intervention","EIP Locality 8 � Children�s Village","R4700"
"Wolverhampton City Council","http://opendatacommunities.org/id/metropolitan-district-council/wolverhampton","707386","Smile Education Recruitment","INV000926","121.41","Grant Payments","130197828","20/12/2017","Early Intervention","EIP Locality 8 � Children�s Village","R4700"
"Wolverhampton City Council","http://opendatacommunities.org/id/metropolitan-district-council/wolverhampton","707386","Smile Education Recruitment","INV000440","222.59","Grant Payments","130196792","06/12/2017","Early Intervention","EIP Locality 7 � Low Hill","R4700"
"Wolverhampton City Council","http://opendatacommunities.org/id/metropolitan-district-council/wolverhampton","707386","Smile Education Recruitment","INV000440","-222.59","Grant Payments","130196792","06/12/2017","Early Intervention","EIP Locality 7 � Low Hill","R4700"
"Wolverhampton City Council","http://opendatacommunities.org/id/metropolitan-district-council/wolverhampton","707386","Smile Education Recruitment","INV000440","222.59","Grant Payments","130196792","06/12/2017","Early Intervention","EIP Locality 7 � Low Hill","R4700"
"Wolverhampton City Council","http://opendatacommunities.org/id/metropolitan-district-council/wolverhampton","707386","Smile Education Recruitment","INV000785","121.41","Grant Payments","130196426","13/12/2017","Early Intervention","EIP Locality 8 � Children�s Village","R4700"
"Wolverhampton City Council","http://opendatacommunities.org/id/metropolitan-district-council/wolverhampton","707386","Smile Education Recruitment","INV000785","-121.41","Grant Payments","130196426","13/12/2017","Early Intervention","EIP Locality 8 � Children�s Village","R4700"
"Wolverhampton City Council","http://opendatacommunities.org/id/metropolitan-district-council/wolverhampton","707386","Smile Education Recruitment","INV000785","121.41","Grant Payments","130196426","13/12/2017","Early Intervention","EIP Locality 8 � Children�s Village","R4700"
"Wolverhampton City Council","http://opendatacommunities.org/id/metropolitan-district-council/wolverhampton","707386","Smile Education Recruitment","INV001112","121.41","Grant Payments","130198061","27/12/2017","Early Intervention","EIP Locality 8 � Children�s Village","R4700"
"Wolverhampton City Council","http://opendatacommunities.org/id/metropolitan-district-council/wolverhampton","707386","Smile Education Recruitment","INV001112","-121.41","Grant Payments","130198061","27/12/2017","Early Intervention","EIP Locality 8 � Children�s Village","R4700"
"Wolverhampton City Council","http://opendatacommunities.org/id/metropolitan-district-council/wolverhampton","707386","Smile Education Recruitment","INV001112","121.41","Grant Payments","130198061","27/12/2017","Early Intervention","EIP Locality 8 � Children�s Village","R4700"
"Wolverhampton City Council","http://opendatacommunities.org/id/metropolitan-district-council/wolverhampton","707388","Smith Bros(Caer Conan)Wholesale Limited","536438","18,949.68","Materials","130198245","27/12/2017","Street Lighting","Street Lighting Maintenance","R4007"
"Wolverhampton City Council","http://opendatacommunities.org/id/metropolitan-district-council/wolverhampton","707388","Smith Bros(Caer Conan)Wholesale Limited","536439","21,159.60","Materials","130198246","27/12/2017","Street Lighting","Street Lighting Maintenance","R4007"
"Wolverhampton City Council","http://opendatacommunities.org/id/metropolitan-district-council/wolverhampton","707388","Smith Bros(Caer Conan)Wholesale Limited","537530","8,061.24","Materials","130199231","27/12/2017","Street Lighting","Street Lighting Maintenance","R4007"
"Wolverhampton City Council","http://opendatacommunities.org/id/metropolitan-district-council/wolverhampton","707388","Smith Bros(Caer Conan)Wholesale Limited","537531","260.04","Materials","130199232","27/12/2017","Street Lighting","Street Lighting Maintenance","R4007"
"Wolverhampton City Council","http://opendatacommunities.org/id/metropolitan-district-council/wolverhampton","707390","Smith Of Derby Limited","0000102042","150.00","Fixtures and Fittings - Purchases","130198062","20/12/2017","Maintenance Programme","Public Clocks","R2500"
"Wolverhampton City Council","http://opendatacommunities.org/id/metropolitan-district-council/wolverhampton","707390","Smith Of Derby Limited","0000101662","1,457.50","Fixtures and Fittings - Purchases","130195207","06/12/2017","Maintenance Programme","Centralised R&M","R2500"
"Wolverhampton City Council","http://opendatacommunities.org/id/metropolitan-district-council/wolverhampton","707419","Solihull Metropolitan B C","100053","25,000.00","Finance from joint projects","130198475","15/12/2017","Safeguarding","Head of Service Quality and Safeguarding","R9111"
"Wolverhampton City Council","http://opendatacommunities.org/id/metropolitan-district-council/wolverhampton","707419","Solihull Metropolitan B C","101755","14,554.00","TPP - Payments to Local Authorities","130199058","13/12/2017","Standards and Vulnerable Pupils","SEN Education OOC","R5100"
"Wolverhampton City Council","http://opendatacommunities.org/id/metropolitan-district-council/wolverhampton","707419","Solihull Metropolitan B C","101755","674.60","TPP - Payments to Local Authorities","130199058","13/12/2017","Standards and Vulnerable Pupils","SEN Education OOC","R5100"
"Wolverhampton City Council","http://opendatacommunities.org/id/metropolitan-district-council/wolverhampton","707419","Solihull Metropolitan B C","101755","437.02","TPP - Payments to Local Authorities","130199058","13/12/2017","Standards and Vulnerable Pupils","SEN Education OOC","R5100"
"Wolverhampton City Council","http://opendatacommunities.org/id/metropolitan-district-council/wolverhampton","707435","South Staffs College","223819","2,400.00","Training Expenses","130199142","15/12/2017","Human Resources","Centralised Training","R1650"
"Wolverhampton City Council","http://opendatacommunities.org/id/metropolitan-district-council/wolverhampton","707441","Southern Electric PLC","SSE0210-5726481410","72.08","Electricity","190401813","13/12/2017","Housing Revenue Account","Hostels / Outreach","R2100"
"Wolverhampton City Council","http://opendatacommunities.org/id/metropolitan-district-council/wolverhampton","707447","Sovereign Coaches Limited","20471","1,745.00","Client Transport","130198417","27/12/2017","School Planning & Resources","Special - Transport","R3042"
"Wolverhampton City Council","http://opendatacommunities.org/id/metropolitan-district-council/wolverhampton","707448","Sovereign Design Systems Limited","90101","713.13","R&M - Departmental planned (external)","130198131","06/12/2017","Schools","Woodthorne Primary School","R2001"
"Wolverhampton City Council","http://opendatacommunities.org/id/metropolitan-district-council/wolverhampton","707465","Specialist Crafts Limited","SINHO00285018","18.42","Equipment - Purchase","130196427","06/12/2017","Adult Education","Creative Studies Delivery Area","R4000"
"Wolverhampton City Council","http://opendatacommunities.org/id/metropolitan-district-council/wolverhampton","707465","Specialist Crafts Limited","SINHO00267995","63.79","Equipment - Purchase","130189897","06/12/2017","Adult Education","Creative Studies Delivery Area","R4000"
"Wolverhampton City Council","http://opendatacommunities.org/id/metropolitan-district-council/wolverhampton","707465","Specialist Crafts Limited","SINHO00267995","5.99","Equipment - Purchase","130189897","06/12/2017","Adult Education","Creative Studies Delivery Area","R4000"
"Wolverhampton City Council","http://opendatacommunities.org/id/metropolitan-district-council/wolverhampton","707474","Speedy Asset Services Limited","7110536983","113.78","Materials","130195222","01/12/2017","Street Lighting","Street Lighting Maintenance","R4007"
"Wolverhampton City Council","http://opendatacommunities.org/id/metropolitan-district-council/wolverhampton","707474","Speedy Asset Services Limited","7110629773","24.76","Equipment - Hire","130197449","01/12/2017","Highways Maintenance","Planned Highways Maintenance","R4001"
"Wolverhampton City Council","http://opendatacommunities.org/id/metropolitan-district-council/wolverhampton","707499","Spurgeons","3309","8,083.33","TPP - Social Care Support Services","130198247","27/12/2017","Child Protection","Head of Service - CINCP","R5501"
"Wolverhampton City Council","http://opendatacommunities.org/id/metropolitan-district-council/wolverhampton","707511","St Columba�S Church Day Centre","33/52 1720171130","41.86","TPP - Day Care","190398802","01/12/2017","Older People Care Purchasing","OP Care Purchasing (Spot Placements)","R5430"
"Wolverhampton City Council","http://opendatacommunities.org/id/metropolitan-district-council/wolverhampton","707511","St Columba�S Church Day Centre","33/52 1720171130","20.93","TPP - Day Care","190398802","01/12/2017","Older People Care Purchasing","OP Care Purchasing (Spot Placements)","R5430"
"Wolverhampton City Council","http://opendatacommunities.org/id/metropolitan-district-council/wolverhampton","707511","St Columba�S Church Day Centre","33/52 1720171130","20.93","TPP - Day Care","190398802","01/12/2017","Older People Care Purchasing","OP Care Purchasing (Spot Placements)","R5430"
"Wolverhampton City Council","http://opendatacommunities.org/id/metropolitan-district-council/wolverhampton","707511","St Columba�S Church Day Centre","33/52 1720171130","41.86","TPP - Day Care","190398802","01/12/2017","Older People Care Purchasing","OP Care Purchasing (Spot Placements)","R5430"
"Wolverhampton City Council","http://opendatacommunities.org/id/metropolitan-district-council/wolverhampton","707511","St Columba�S Church Day Centre","33/52 1720171130","20.93","TPP - Day Care","190398802","01/12/2017","Older People Care Purchasing","OP Care Purchasing (Spot Placements)","R5430"
"Wolverhampton City Council","http://opendatacommunities.org/id/metropolitan-district-council/wolverhampton","707511","St Columba�S Church Day Centre","33/52 1720171130","41.86","TPP - Day Care","190398802","01/12/2017","Older People Care Purchasing","OP Care Purchasing (Spot Placements)","R5430"
"Wolverhampton City Council","http://opendatacommunities.org/id/metropolitan-district-council/wolverhampton","707511","St Columba�S Church Day Centre","33/52 1720171130","41.86","TPP - Day Care","190398802","01/12/2017","Older People Care Purchasing","OP Care Purchasing (Spot Placements)","R5430"
"Wolverhampton City Council","http://opendatacommunities.org/id/metropolitan-district-council/wolverhampton","707511","St Columba�S Church Day Centre","33/52 1720171130","41.86","TPP - Day Care","190398802","01/12/2017","Older People Care Purchasing","OP Care Purchasing (Spot Placements)","R5430"
"Wolverhampton City Council","http://opendatacommunities.org/id/metropolitan-district-council/wolverhampton","707511","St Columba�S Church Day Centre","33/52 1720171130","20.93","TPP - Day Care","190398802","01/12/2017","Older People Care Purchasing","OP Care Purchasing (Spot Placements)","R5430"
"Wolverhampton City Council","http://opendatacommunities.org/id/metropolitan-district-council/wolverhampton","707511","St Columba�S Church Day Centre","33/52 1720171130","62.79","TPP - Day Care","190398802","01/12/2017","Older People Care Purchasing","OP Care Purchasing (Spot Placements)","R5430"
"Wolverhampton City Council","http://opendatacommunities.org/id/metropolitan-district-council/wolverhampton","707511","St Columba�S Church Day Centre","33/52 1720171130","41.86","TPP - Day Care","190398802","01/12/2017","Older People Care Purchasing","OP Care Purchasing (Spot Placements)","R5430"
"Wolverhampton City Council","http://opendatacommunities.org/id/metropolitan-district-council/wolverhampton","707511","St Columba�S Church Day Centre","33/52 1720171130","20.93","TPP - Day Care","190398802","01/12/2017","Older People Care Purchasing","OP Care Purchasing (Spot Placements)","R5430"
"Wolverhampton City Council","http://opendatacommunities.org/id/metropolitan-district-council/wolverhampton","707511","St Columba�S Church Day Centre","33/52 1720171130","20.93","TPP - Day Care","190398802","01/12/2017","Older People Care Purchasing","OP Care Purchasing (Spot Placements)","R5430"
"Wolverhampton City Council","http://opendatacommunities.org/id/metropolitan-district-council/wolverhampton","707511","St Columba�S Church Day Centre","33/52 1720171130","20.93","TPP - Day Care","190398802","01/12/2017","Older People Care Purchasing","OP Care Purchasing (Spot Placements)","R5430"
"Wolverhampton City Council","http://opendatacommunities.org/id/metropolitan-district-council/wolverhampton","707511","St Columba�S Church Day Centre","33/52 1720171130","41.86","TPP - Day Care","190398802","01/12/2017","Older People Care Purchasing","OP Care Purchasing (Spot Placements)","R5430"
"Wolverhampton City Council","http://opendatacommunities.org/id/metropolitan-district-council/wolverhampton","707511","St Columba�S Church Day Centre","33/52 1720171130","20.93","TPP - Day Care","190398802","01/12/2017","Older People Care Purchasing","OP Care Purchasing (Spot Placements)","R5430"
"Wolverhampton City Council","http://opendatacommunities.org/id/metropolitan-district-council/wolverhampton","707511","St Columba�S Church Day Centre","33/52 1720171130","20.93","TPP - Day Care","190398802","01/12/2017","Older People Care Purchasing","OP Care Purchasing (Spot Placements)","R5430"
"Wolverhampton City Council","http://opendatacommunities.org/id/metropolitan-district-council/wolverhampton","707511","St Columba�S Church Day Centre","33/52 1720171130","41.86","TPP - Day Care","190398802","01/12/2017","Older People Care Purchasing","OP Care Purchasing (Spot Placements)","R5430"
"Wolverhampton City Council","http://opendatacommunities.org/id/metropolitan-district-council/wolverhampton","707511","St Columba�S Church Day Centre","33/52 1720171130","20.93","TPP - Day Care","190398802","01/12/2017","Older People Care Purchasing","OP Care Purchasing (Spot Placements)","R5430"
"Wolverhampton City Council","http://opendatacommunities.org/id/metropolitan-district-council/wolverhampton","707511","St Columba�S Church Day Centre","33/52 1720171130","20.93","TPP - Day Care","190398802","01/12/2017","Older People Care Purchasing","OP Care Purchasing (Spot Placements)","R5430"
"Wolverhampton City Council","http://opendatacommunities.org/id/metropolitan-district-council/wolverhampton","707511","St Columba�S Church Day Centre","33/52 1720171130","20.93","TPP - Day Care","190398802","01/12/2017","Older People Care Purchasing","OP Care Purchasing (Spot Placements)","R5430"
"Wolverhampton City Council","http://opendatacommunities.org/id/metropolitan-district-council/wolverhampton","707511","St Columba�S Church Day Centre","33/52 1720171130","41.86","TPP - Day Care","190398802","01/12/2017","Older People Care Purchasing","OP Care Purchasing (Spot Placements)","R5430"
"Wolverhampton City Council","http://opendatacommunities.org/id/metropolitan-district-council/wolverhampton","707511","St Columba�S Church Day Centre","33/52 1720171130","62.79","TPP - Day Care","190398802","01/12/2017","Older People Care Purchasing","OP Care Purchasing (Spot Placements)","R5430"
"Wolverhampton City Council","http://opendatacommunities.org/id/metropolitan-district-council/wolverhampton","707511","St Columba�S Church Day Centre","33/52 1720171130","41.86","TPP - Day Care","190398802","01/12/2017","Older People Care Purchasing","OP Care Purchasing (Spot Placements)","R5430"
"Wolverhampton City Council","http://opendatacommunities.org/id/metropolitan-district-council/wolverhampton","707511","St Columba�S Church Day Centre","33/52 1720171130","62.79","TPP - Day Care","190398802","01/12/2017","Older People Care Purchasing","OP Care Purchasing (Spot Placements)","R5430"
"Wolverhampton City Council","http://opendatacommunities.org/id/metropolitan-district-council/wolverhampton","707511","St Columba�S Church Day Centre","35/52 1720171212","20.93","TPP - Day Care","190402099","13/12/2017","Older People Care Purchasing","OP Care Purchasing (Spot Placements)","R5430"
"Wolverhampton City Council","http://opendatacommunities.org/id/metropolitan-district-council/wolverhampton","707511","St Columba�S Church Day Centre","35/52 1720171212","41.86","TPP - Day Care","190402099","13/12/2017","Older People Care Purchasing","OP Care Purchasing (Spot Placements)","R5430"
"Wolverhampton City Council","http://opendatacommunities.org/id/metropolitan-district-council/wolverhampton","707511","St Columba�S Church Day Centre","35/52 1720171212","20.93","TPP - Day Care","190402099","13/12/2017","Older People Care Purchasing","OP Care Purchasing (Spot Placements)","R5430"
"Wolverhampton City Council","http://opendatacommunities.org/id/metropolitan-district-council/wolverhampton","707511","St Columba�S Church Day Centre","35/52 1720171212","41.86","TPP - Day Care","190402099","13/12/2017","Older People Care Purchasing","OP Care Purchasing (Spot Placements)","R5430"
"Wolverhampton City Council","http://opendatacommunities.org/id/metropolitan-district-council/wolverhampton","707511","St Columba�S Church Day Centre","35/52 1720171212","41.86","TPP - Day Care","190402099","13/12/2017","Older People Care Purchasing","OP Care Purchasing (Spot Placements)","R5430"
"Wolverhampton City Council","http://opendatacommunities.org/id/metropolitan-district-council/wolverhampton","707511","St Columba�S Church Day Centre","35/52 1720171212","20.93","TPP - Day Care","190402099","13/12/2017","Older People Care Purchasing","OP Care Purchasing (Spot Placements)","R5430"
"Wolverhampton City Council","http://opendatacommunities.org/id/metropolitan-district-council/wolverhampton","707511","St Columba�S Church Day Centre","35/52 1720171212","41.86","TPP - Day Care","190402099","13/12/2017","Older People Care Purchasing","OP Care Purchasing (Spot Placements)","R5430"
"Wolverhampton City Council","http://opendatacommunities.org/id/metropolitan-district-council/wolverhampton","707511","St Columba�S Church Day Centre","35/52 1720171212","41.86","TPP - Day Care","190402099","13/12/2017","Older People Care Purchasing","OP Care Purchasing (Spot Placements)","R5430"
"Wolverhampton City Council","http://opendatacommunities.org/id/metropolitan-district-council/wolverhampton","707511","St Columba�S Church Day Centre","35/52 1720171212","41.86","TPP - Day Care","190402099","13/12/2017","Older People Care Purchasing","OP Care Purchasing (Spot Placements)","R5430"
"Wolverhampton City Council","http://opendatacommunities.org/id/metropolitan-district-council/wolverhampton","707511","St Columba�S Church Day Centre","35/52 1720171212","20.93","TPP - Day Care","190402099","13/12/2017","Older People Care Purchasing","OP Care Purchasing (Spot Placements)","R5430"
"Wolverhampton City Council","http://opendatacommunities.org/id/metropolitan-district-council/wolverhampton","707511","St Columba�S Church Day Centre","35/52 1720171212","41.86","TPP - Day Care","190402099","13/12/2017","Older People Care Purchasing","OP Care Purchasing (Spot Placements)","R5430"
"Wolverhampton City Council","http://opendatacommunities.org/id/metropolitan-district-council/wolverhampton","707511","St Columba�S Church Day Centre","35/52 1720171212","41.86","TPP - Day Care","190402099","13/12/2017","Older People Care Purchasing","OP Care Purchasing (Spot Placements)","R5430"
"Wolverhampton City Council","http://opendatacommunities.org/id/metropolitan-district-council/wolverhampton","707511","St Columba�S Church Day Centre","35/52 1720171212","41.86","TPP - Day Care","190402099","13/12/2017","Older People Care Purchasing","OP Care Purchasing (Spot Placements)","R5430"
"Wolverhampton City Council","http://opendatacommunities.org/id/metropolitan-district-council/wolverhampton","707511","St Columba�S Church Day Centre","35/52 1720171212","41.86","TPP - Day Care","190402099","13/12/2017","Older People Care Purchasing","OP Care Purchasing (Spot Placements)","R5430"
"Wolverhampton City Council","http://opendatacommunities.org/id/metropolitan-district-council/wolverhampton","707511","St Columba�S Church Day Centre","35/52 1720171212","62.79","TPP - Day Care","190402099","13/12/2017","Older People Care Purchasing","OP Care Purchasing (Spot Placements)","R5430"
"Wolverhampton City Council","http://opendatacommunities.org/id/metropolitan-district-council/wolverhampton","707511","St Columba�S Church Day Centre","35/52 1720171212","41.86","TPP - Day Care","190402099","13/12/2017","Older People Care Purchasing","OP Care Purchasing (Spot Placements)","R5430"
"Wolverhampton City Council","http://opendatacommunities.org/id/metropolitan-district-council/wolverhampton","707511","St Columba�S Church Day Centre","35/52 1720171212","41.86","TPP - Day Care","190402099","13/12/2017","Older People Care Purchasing","OP Care Purchasing (Spot Placements)","R5430"
"Wolverhampton City Council","http://opendatacommunities.org/id/metropolitan-district-council/wolverhampton","707511","St Columba�S Church Day Centre","35/52 1720171212","62.79","TPP - Day Care","190402099","13/12/2017","Older People Care Purchasing","OP Care Purchasing (Spot Placements)","R5430"
"Wolverhampton City Council","http://opendatacommunities.org/id/metropolitan-district-council/wolverhampton","707511","St Columba�S Church Day Centre","35/52 1720171212","20.93","TPP - Day Care","190402099","13/12/2017","Older People Care Purchasing","OP Care Purchasing (Spot Placements)","R5430"
"Wolverhampton City Council","http://opendatacommunities.org/id/metropolitan-district-council/wolverhampton","707511","St Columba�S Church Day Centre","35/52 1720171212","20.93","TPP - Day Care","190402099","13/12/2017","Older People Care Purchasing","OP Care Purchasing (Spot Placements)","R5430"
"Wolverhampton City Council","http://opendatacommunities.org/id/metropolitan-district-council/wolverhampton","707511","St Columba�S Church Day Centre","35/52 1720171212","20.93","TPP - Day Care","190402099","13/12/2017","Older People Care Purchasing","OP Care Purchasing (Spot Placements)","R5430"
"Wolverhampton City Council","http://opendatacommunities.org/id/metropolitan-district-council/wolverhampton","707511","St Columba�S Church Day Centre","35/52 1720171212","20.93","TPP - Day Care","190402099","13/12/2017","Older People Care Purchasing","OP Care Purchasing (Spot Placements)","R5430"
"Wolverhampton City Council","http://opendatacommunities.org/id/metropolitan-district-council/wolverhampton","707511","St Columba�S Church Day Centre","35/52 1720171212","20.93","TPP - Day Care","190402099","13/12/2017","Older People Care Purchasing","OP Care Purchasing (Spot Placements)","R5430"
"Wolverhampton City Council","http://opendatacommunities.org/id/metropolitan-district-council/wolverhampton","707511","St Columba�S Church Day Centre","35/52 1720171212","41.86","TPP - Day Care","190402099","13/12/2017","Older People Care Purchasing","OP Care Purchasing (Spot Placements)","R5430"
"Wolverhampton City Council","http://opendatacommunities.org/id/metropolitan-district-council/wolverhampton","707511","St Columba�S Church Day Centre","35/52 1720171212","20.93","TPP - Day Care","190402099","13/12/2017","Older People Care Purchasing","OP Care Purchasing (Spot Placements)","R5430"
"Wolverhampton City Council","http://opendatacommunities.org/id/metropolitan-district-council/wolverhampton","707511","St Columba�S Church Day Centre","37/52 1720171221","20.93","TPP - Day Care","190405799","27/12/2017","Older People Care Purchasing","OP Care Purchasing (Spot Placements)","R5430"
"Wolverhampton City Council","http://opendatacommunities.org/id/metropolitan-district-council/wolverhampton","707511","St Columba�S Church Day Centre","37/52 1720171221","20.93","TPP - Day Care","190405799","27/12/2017","Older People Care Purchasing","OP Care Purchasing (Spot Placements)","R5430"
"Wolverhampton City Council","http://opendatacommunities.org/id/metropolitan-district-council/wolverhampton","707511","St Columba�S Church Day Centre","37/52 1720171221","41.86","TPP - Day Care","190405799","27/12/2017","Older People Care Purchasing","OP Care Purchasing (Spot Placements)","R5430"
"Wolverhampton City Council","http://opendatacommunities.org/id/metropolitan-district-council/wolverhampton","707511","St Columba�S Church Day Centre","37/52 1720171221","20.93","TPP - Day Care","190405799","27/12/2017","Older People Care Purchasing","OP Care Purchasing (Spot Placements)","R5430"
"Wolverhampton City Council","http://opendatacommunities.org/id/metropolitan-district-council/wolverhampton","707511","St Columba�S Church Day Centre","37/52 1720171221","20.93","TPP - Day Care","190405799","27/12/2017","Older People Care Purchasing","OP Care Purchasing (Spot Placements)","R5430"
"Wolverhampton City Council","http://opendatacommunities.org/id/metropolitan-district-council/wolverhampton","707511","St Columba�S Church Day Centre","37/52 1720171221","20.93","TPP - Day Care","190405799","27/12/2017","Older People Care Purchasing","OP Care Purchasing (Spot Placements)","R5430"
"Wolverhampton City Council","http://opendatacommunities.org/id/metropolitan-district-council/wolverhampton","707511","St Columba�S Church Day Centre","37/52 1720171221","20.93","TPP - Day Care","190405799","27/12/2017","Older People Care Purchasing","OP Care Purchasing (Spot Placements)","R5430"
"Wolverhampton City Council","http://opendatacommunities.org/id/metropolitan-district-council/wolverhampton","707511","St Columba�S Church Day Centre","37/52 1720171221","41.86","TPP - Day Care","190405799","27/12/2017","Older People Care Purchasing","OP Care Purchasing (Spot Placements)","R5430"
"Wolverhampton City Council","http://opendatacommunities.org/id/metropolitan-district-council/wolverhampton","707511","St Columba�S Church Day Centre","37/52 1720171221","20.93","TPP - Day Care","190405799","27/12/2017","Older People Care Purchasing","OP Care Purchasing (Spot Placements)","R5430"
"Wolverhampton City Council","http://opendatacommunities.org/id/metropolitan-district-council/wolverhampton","707511","St Columba�S Church Day Centre","37/52 1720171221","20.93","TPP - Day Care","190405799","27/12/2017","Older People Care Purchasing","OP Care Purchasing (Spot Placements)","R5430"
"Wolverhampton City Council","http://opendatacommunities.org/id/metropolitan-district-council/wolverhampton","707511","St Columba�S Church Day Centre","37/52 1720171221","20.93","TPP - Day Care","190405799","27/12/2017","Older People Care Purchasing","OP Care Purchasing (Spot Placements)","R5430"
"Wolverhampton City Council","http://opendatacommunities.org/id/metropolitan-district-council/wolverhampton","707511","St Columba�S Church Day Centre","37/52 1720171221","20.93","TPP - Day Care","190405799","27/12/2017","Older People Care Purchasing","OP Care Purchasing (Spot Placements)","R5430"
"Wolverhampton City Council","http://opendatacommunities.org/id/metropolitan-district-council/wolverhampton","707511","St Columba�S Church Day Centre","37/52 1720171221","20.93","TPP - Day Care","190405799","27/12/2017","Older People Care Purchasing","OP Care Purchasing (Spot Placements)","R5430"
"Wolverhampton City Council","http://opendatacommunities.org/id/metropolitan-district-council/wolverhampton","707511","St Columba�S Church Day Centre","37/52 1720171221","41.86","TPP - Day Care","190405799","27/12/2017","Older People Care Purchasing","OP Care Purchasing (Spot Placements)","R5430"
"Wolverhampton City Council","http://opendatacommunities.org/id/metropolitan-district-council/wolverhampton","707511","St Columba�S Church Day Centre","37/52 1720171221","20.93","TPP - Day Care","190405799","27/12/2017","Older People Care Purchasing","OP Care Purchasing (Spot Placements)","R5430"
"Wolverhampton City Council","http://opendatacommunities.org/id/metropolitan-district-council/wolverhampton","707511","St Columba�S Church Day Centre","37/52 1720171221","62.79","TPP - Day Care","190405799","27/12/2017","Older People Care Purchasing","OP Care Purchasing (Spot Placements)","R5430"
"Wolverhampton City Council","http://opendatacommunities.org/id/metropolitan-district-council/wolverhampton","707511","St Columba�S Church Day Centre","37/52 1720171221","41.86","TPP - Day Care","190405799","27/12/2017","Older People Care Purchasing","OP Care Purchasing (Spot Placements)","R5430"
"Wolverhampton City Council","http://opendatacommunities.org/id/metropolitan-district-council/wolverhampton","707511","St Columba�S Church Day Centre","37/52 1720171221","62.79","TPP - Day Care","190405799","27/12/2017","Older People Care Purchasing","OP Care Purchasing (Spot Placements)","R5430"
"Wolverhampton City Council","http://opendatacommunities.org/id/metropolitan-district-council/wolverhampton","707511","St Columba�S Church Day Centre","37/52 1720171221","41.86","TPP - Day Care","190405799","27/12/2017","Older People Care Purchasing","OP Care Purchasing (Spot Placements)","R5430"
"Wolverhampton City Council","http://opendatacommunities.org/id/metropolitan-district-council/wolverhampton","707511","St Columba�S Church Day Centre","37/52 1720171221","20.93","TPP - Day Care","190405799","27/12/2017","Older People Care Purchasing","OP Care Purchasing (Spot Placements)","R5430"
"Wolverhampton City Council","http://opendatacommunities.org/id/metropolitan-district-council/wolverhampton","707511","St Columba�S Church Day Centre","36/52 1720171219","41.86","TPP - Day Care","190404743","20/12/2017","Older People Care Purchasing","OP Care Purchasing (Spot Placements)","R5430"
"Wolverhampton City Council","http://opendatacommunities.org/id/metropolitan-district-council/wolverhampton","707511","St Columba�S Church Day Centre","36/52 1720171219","20.93","TPP - Day Care","190404743","20/12/2017","Older People Care Purchasing","OP Care Purchasing (Spot Placements)","R5430"
"Wolverhampton City Council","http://opendatacommunities.org/id/metropolitan-district-council/wolverhampton","707511","St Columba�S Church Day Centre","36/52 1720171219","20.93","TPP - Day Care","190404743","20/12/2017","Older People Care Purchasing","OP Care Purchasing (Spot Placements)","R5430"
"Wolverhampton City Council","http://opendatacommunities.org/id/metropolitan-district-council/wolverhampton","707511","St Columba�S Church Day Centre","36/52 1720171219","20.93","TPP - Day Care","190404743","20/12/2017","Older People Care Purchasing","OP Care Purchasing (Spot Placements)","R5430"
"Wolverhampton City Council","http://opendatacommunities.org/id/metropolitan-district-council/wolverhampton","707511","St Columba�S Church Day Centre","36/52 1720171219","20.93","TPP - Day Care","190404743","20/12/2017","Older People Care Purchasing","OP Care Purchasing (Spot Placements)","R5430"
"Wolverhampton City Council","http://opendatacommunities.org/id/metropolitan-district-council/wolverhampton","707511","St Columba�S Church Day Centre","36/52 1720171219","41.86","TPP - Day Care","190404743","20/12/2017","Older People Care Purchasing","OP Care Purchasing (Spot Placements)","R5430"
"Wolverhampton City Council","http://opendatacommunities.org/id/metropolitan-district-council/wolverhampton","707511","St Columba�S Church Day Centre","36/52 1720171219","20.93","TPP - Day Care","190404743","20/12/2017","Older People Care Purchasing","OP Care Purchasing (Spot Placements)","R5430"
"Wolverhampton City Council","http://opendatacommunities.org/id/metropolitan-district-council/wolverhampton","707511","St Columba�S Church Day Centre","36/52 1720171219","62.79","TPP - Day Care","190404743","20/12/2017","Older People Care Purchasing","OP Care Purchasing (Spot Placements)","R5430"
"Wolverhampton City Council","http://opendatacommunities.org/id/metropolitan-district-council/wolverhampton","707511","St Columba�S Church Day Centre","36/52 1720171219","41.86","TPP - Day Care","190404743","20/12/2017","Older People Care Purchasing","OP Care Purchasing (Spot Placements)","R5430"
"Wolverhampton City Council","http://opendatacommunities.org/id/metropolitan-district-council/wolverhampton","707511","St Columba�S Church Day Centre","36/52 1720171219","41.86","TPP - Day Care","190404743","20/12/2017","Older People Care Purchasing","OP Care Purchasing (Spot Placements)","R5430"
"Wolverhampton City Council","http://opendatacommunities.org/id/metropolitan-district-council/wolverhampton","707511","St Columba�S Church Day Centre","36/52 1720171219","41.86","TPP - Day Care","190404743","20/12/2017","Older People Care Purchasing","OP Care Purchasing (Spot Placements)","R5430"
"Wolverhampton City Council","http://opendatacommunities.org/id/metropolitan-district-council/wolverhampton","707511","St Columba�S Church Day Centre","36/52 1720171219","41.86","TPP - Day Care","190404743","20/12/2017","Older People Care Purchasing","OP Care Purchasing (Spot Placements)","R5430"
"Wolverhampton City Council","http://opendatacommunities.org/id/metropolitan-district-council/wolverhampton","707511","St Columba�S Church Day Centre","36/52 1720171219","20.93","TPP - Day Care","190404743","20/12/2017","Older People Care Purchasing","OP Care Purchasing (Spot Placements)","R5430"
"Wolverhampton City Council","http://opendatacommunities.org/id/metropolitan-district-council/wolverhampton","707511","St Columba�S Church Day Centre","36/52 1720171219","20.93","TPP - Day Care","190404743","20/12/2017","Older People Care Purchasing","OP Care Purchasing (Spot Placements)","R5430"
"Wolverhampton City Council","http://opendatacommunities.org/id/metropolitan-district-council/wolverhampton","707511","St Columba�S Church Day Centre","36/52 1720171219","41.86","TPP - Day Care","190404743","20/12/2017","Older People Care Purchasing","OP Care Purchasing (Spot Placements)","R5430"
"Wolverhampton City Council","http://opendatacommunities.org/id/metropolitan-district-council/wolverhampton","707511","St Columba�S Church Day Centre","36/52 1720171219","41.86","TPP - Day Care","190404743","20/12/2017","Older People Care Purchasing","OP Care Purchasing (Spot Placements)","R5430"
"Wolverhampton City Council","http://opendatacommunities.org/id/metropolitan-district-council/wolverhampton","707511","St Columba�S Church Day Centre","36/52 1720171219","20.93","TPP - Day Care","190404743","20/12/2017","Older People Care Purchasing","OP Care Purchasing (Spot Placements)","R5430"
"Wolverhampton City Council","http://opendatacommunities.org/id/metropolitan-district-council/wolverhampton","707511","St Columba�S Church Day Centre","36/52 1720171219","20.93","TPP - Day Care","190404743","20/12/2017","Older People Care Purchasing","OP Care Purchasing (Spot Placements)","R5430"
"Wolverhampton City Council","http://opendatacommunities.org/id/metropolitan-district-council/wolverhampton","707511","St Columba�S Church Day Centre","36/52 1720171219","41.86","TPP - Day Care","190404743","20/12/2017","Older People Care Purchasing","OP Care Purchasing (Spot Placements)","R5430"
"Wolverhampton City Council","http://opendatacommunities.org/id/metropolitan-district-council/wolverhampton","707511","St Columba�S Church Day Centre","36/52 1720171219","41.86","TPP - Day Care","190404743","20/12/2017","Older People Care Purchasing","OP Care Purchasing (Spot Placements)","R5430"
"Wolverhampton City Council","http://opendatacommunities.org/id/metropolitan-district-council/wolverhampton","707511","St Columba�S Church Day Centre","36/52 1720171219","20.93","TPP - Day Care","190404743","20/12/2017","Older People Care Purchasing","OP Care Purchasing (Spot Placements)","R5430"
"Wolverhampton City Council","http://opendatacommunities.org/id/metropolitan-district-council/wolverhampton","707511","St Columba�S Church Day Centre","36/52 1720171219","20.93","TPP - Day Care","190404743","20/12/2017","Older People Care Purchasing","OP Care Purchasing (Spot Placements)","R5430"
"Wolverhampton City Council","http://opendatacommunities.org/id/metropolitan-district-council/wolverhampton","707511","St Columba�S Church Day Centre","36/52 1720171219","20.93","TPP - Day Care","190404743","20/12/2017","Older People Care Purchasing","OP Care Purchasing (Spot Placements)","R5430"
"Wolverhampton City Council","http://opendatacommunities.org/id/metropolitan-district-council/wolverhampton","707511","St Columba�S Church Day Centre","36/52 1720171219","62.79","TPP - Day Care","190404743","20/12/2017","Older People Care Purchasing","OP Care Purchasing (Spot Placements)","R5430"
"Wolverhampton City Council","http://opendatacommunities.org/id/metropolitan-district-council/wolverhampton","707511","St Columba�S Church Day Centre","36/52 1720171219","62.79","TPP - Day Care","190404743","20/12/2017","Older People Care Purchasing","OP Care Purchasing (Spot Placements)","R5430"
"Wolverhampton City Council","http://opendatacommunities.org/id/metropolitan-district-council/wolverhampton","707511","St Columba�S Church Day Centre","36/52 1720171219","20.93","TPP - Day Care","190404743","20/12/2017","Older People Care Purchasing","OP Care Purchasing (Spot Placements)","R5430"
"Wolverhampton City Council","http://opendatacommunities.org/id/metropolitan-district-council/wolverhampton","707511","St Columba�S Church Day Centre","34/52 1720171208","20.93","TPP - Day Care","190401279","13/12/2017","Older People Care Purchasing","OP Care Purchasing (Spot Placements)","R5430"
"Wolverhampton City Council","http://opendatacommunities.org/id/metropolitan-district-council/wolverhampton","707511","St Columba�S Church Day Centre","34/52 1720171208","20.93","TPP - Day Care","190401279","13/12/2017","Older People Care Purchasing","OP Care Purchasing (Spot Placements)","R5430"
"Wolverhampton City Council","http://opendatacommunities.org/id/metropolitan-district-council/wolverhampton","707511","St Columba�S Church Day Centre","34/52 1720171208","41.86","TPP - Day Care","190401279","13/12/2017","Older People Care Purchasing","OP Care Purchasing (Spot Placements)","R5430"
"Wolverhampton City Council","http://opendatacommunities.org/id/metropolitan-district-council/wolverhampton","707511","St Columba�S Church Day Centre","34/52 1720171208","41.86","TPP - Day Care","190401279","13/12/2017","Older People Care Purchasing","OP Care Purchasing (Spot Placements)","R5430"
"Wolverhampton City Council","http://opendatacommunities.org/id/metropolitan-district-council/wolverhampton","707511","St Columba�S Church Day Centre","34/52 1720171208","41.86","TPP - Day Care","190401279","13/12/2017","Older People Care Purchasing","OP Care Purchasing (Spot Placements)","R5430"
"Wolverhampton City Council","http://opendatacommunities.org/id/metropolitan-district-council/wolverhampton","707511","St Columba�S Church Day Centre","34/52 1720171208","20.93","TPP - Day Care","190401279","13/12/2017","Older People Care Purchasing","OP Care Purchasing (Spot Placements)","R5430"
"Wolverhampton City Council","http://opendatacommunities.org/id/metropolitan-district-council/wolverhampton","707511","St Columba�S Church Day Centre","34/52 1720171208","41.86","TPP - Day Care","190401279","13/12/2017","Older People Care Purchasing","OP Care Purchasing (Spot Placements)","R5430"
"Wolverhampton City Council","http://opendatacommunities.org/id/metropolitan-district-council/wolverhampton","707511","St Columba�S Church Day Centre","34/52 1720171208","41.86","TPP - Day Care","190401279","13/12/2017","Older People Care Purchasing","OP Care Purchasing (Spot Placements)","R5430"
"Wolverhampton City Council","http://opendatacommunities.org/id/metropolitan-district-council/wolverhampton","707511","St Columba�S Church Day Centre","34/52 1720171208","20.93","TPP - Day Care","190401279","13/12/2017","Older People Care Purchasing","OP Care Purchasing (Spot Placements)","R5430"
"Wolverhampton City Council","http://opendatacommunities.org/id/metropolitan-district-council/wolverhampton","707511","St Columba�S Church Day Centre","34/52 1720171208","41.86","TPP - Day Care","190401279","13/12/2017","Older People Care Purchasing","OP Care Purchasing (Spot Placements)","R5430"
"Wolverhampton City Council","http://opendatacommunities.org/id/metropolitan-district-council/wolverhampton","707511","St Columba�S Church Day Centre","34/52 1720171208","20.93","TPP - Day Care","190401279","13/12/2017","Older People Care Purchasing","OP Care Purchasing (Spot Placements)","R5430"
"Wolverhampton City Council","http://opendatacommunities.org/id/metropolitan-district-council/wolverhampton","707511","St Columba�S Church Day Centre","34/52 1720171208","20.93","TPP - Day Care","190401279","13/12/2017","Older People Care Purchasing","OP Care Purchasing (Spot Placements)","R5430"
"Wolverhampton City Council","http://opendatacommunities.org/id/metropolitan-district-council/wolverhampton","707511","St Columba�S Church Day Centre","34/52 1720171208","20.93","TPP - Day Care","190401279","13/12/2017","Older People Care Purchasing","OP Care Purchasing (Spot Placements)","R5430"
"Wolverhampton City Council","http://opendatacommunities.org/id/metropolitan-district-council/wolverhampton","707511","St Columba�S Church Day Centre","34/52 1720171208","20.93","TPP - Day Care","190401279","13/12/2017","Older People Care Purchasing","OP Care Purchasing (Spot Placements)","R5430"
"Wolverhampton City Council","http://opendatacommunities.org/id/metropolitan-district-council/wolverhampton","707511","St Columba�S Church Day Centre","34/52 1720171208","20.93","TPP - Day Care","190401279","13/12/2017","Older People Care Purchasing","OP Care Purchasing (Spot Placements)","R5430"
"Wolverhampton City Council","http://opendatacommunities.org/id/metropolitan-district-council/wolverhampton","707511","St Columba�S Church Day Centre","34/52 1720171208","20.93","TPP - Day Care","190401279","13/12/2017","Older People Care Purchasing","OP Care Purchasing (Spot Placements)","R5430"
"Wolverhampton City Council","http://opendatacommunities.org/id/metropolitan-district-council/wolverhampton","707511","St Columba�S Church Day Centre","34/52 1720171208","20.93","TPP - Day Care","190401279","13/12/2017","Older People Care Purchasing","OP Care Purchasing (Spot Placements)","R5430"
"Wolverhampton City Council","http://opendatacommunities.org/id/metropolitan-district-council/wolverhampton","707511","St Columba�S Church Day Centre","34/52 1720171208","41.86","TPP - Day Care","190401279","13/12/2017","Older People Care Purchasing","OP Care Purchasing (Spot Placements)","R5430"
"Wolverhampton City Council","http://opendatacommunities.org/id/metropolitan-district-council/wolverhampton","707511","St Columba�S Church Day Centre","34/52 1720171208","41.86","TPP - Day Care","190401279","13/12/2017","Older People Care Purchasing","OP Care Purchasing (Spot Placements)","R5430"
"Wolverhampton City Council","http://opendatacommunities.org/id/metropolitan-district-council/wolverhampton","707511","St Columba�S Church Day Centre","34/52 1720171208","62.79","TPP - Day Care","190401279","13/12/2017","Older People Care Purchasing","OP Care Purchasing (Spot Placements)","R5430"
"Wolverhampton City Council","http://opendatacommunities.org/id/metropolitan-district-council/wolverhampton","707511","St Columba�S Church Day Centre","34/52 1720171208","41.86","TPP - Day Care","190401279","13/12/2017","Older People Care Purchasing","OP Care Purchasing (Spot Placements)","R5430"
"Wolverhampton City Council","http://opendatacommunities.org/id/metropolitan-district-council/wolverhampton","707511","St Columba�S Church Day Centre","34/52 1720171208","41.86","TPP - Day Care","190401279","13/12/2017","Older People Care Purchasing","OP Care Purchasing (Spot Placements)","R5430"
"Wolverhampton City Council","http://opendatacommunities.org/id/metropolitan-district-council/wolverhampton","707511","St Columba�S Church Day Centre","34/52 1720171208","62.79","TPP - Day Care","190401279","13/12/2017","Older People Care Purchasing","OP Care Purchasing (Spot Placements)","R5430"
"Wolverhampton City Council","http://opendatacommunities.org/id/metropolitan-district-council/wolverhampton","707511","St Columba�S Church Day Centre","34/52 1720171208","41.86","TPP - Day Care","190401279","13/12/2017","Older People Care Purchasing","OP Care Purchasing (Spot Placements)","R5430"
"Wolverhampton City Council","http://opendatacommunities.org/id/metropolitan-district-council/wolverhampton","707511","St Columba�S Church Day Centre","34/52 1720171208","41.86","TPP - Day Care","190401279","13/12/2017","Older People Care Purchasing","OP Care Purchasing (Spot Placements)","R5430"
"Wolverhampton City Council","http://opendatacommunities.org/id/metropolitan-district-council/wolverhampton","707533","St Matthews Church","171119","210.00","Room Hire","130196794","06/12/2017","Early Intervention","EIP Locality 1 - Eastfields","R2201"
"Wolverhampton City Council","http://opendatacommunities.org/id/metropolitan-district-council/wolverhampton","707555","St.John�s In The Square Wolverhampton","103","200.00","Room Hire","130198248","06/12/2017","Standards and Vulnerable Pupils","Music Support Team","R2201"
"Wolverhampton City Council","http://opendatacommunities.org/id/metropolitan-district-council/wolverhampton","707555","St.John�s In The Square Wolverhampton","102","200.00","Room Hire","130198063","06/12/2017","Standards and Vulnerable Pupils","Music Support Team","R2201"
"Wolverhampton City Council","http://opendatacommunities.org/id/metropolitan-district-council/wolverhampton","707564","Staffordshire County Council","1000001237","34,451.65","Construction and Conversion","130197829","27/12/2017","-","i54 Access and Infrastructure","C1100"
"Wolverhampton City Council","http://opendatacommunities.org/id/metropolitan-district-council/wolverhampton","707572","Stage Audio Services Limited","3821","2,880.00","Equipment - Hire","130197450","06/12/2017","Visitor Economy","Bonfire","R4001"
"Wolverhampton City Council","http://opendatacommunities.org/id/metropolitan-district-council/wolverhampton","707572","Stage Audio Services Limited","3822","180.00","Equipment - Hire","130197451","06/12/2017","Visitor Economy","Bonfire","R4001"
"Wolverhampton City Council","http://opendatacommunities.org/id/metropolitan-district-council/wolverhampton","707575","Stage Wolves Limited","5646","2,419.00","Services - Professional Fees","130198418","29/12/2017","Visitor Economy","Christmas Festivities","R4400"
"Wolverhampton City Council","http://opendatacommunities.org/id/metropolitan-district-council/wolverhampton","707580","Stannah Lifts Limited","17/0533/SLM","221.40","Grants paid out","190401977","13/12/2017","-","Disabled Facilities Grants","C5000"
"Wolverhampton City Council","http://opendatacommunities.org/id/metropolitan-district-council/wolverhampton","707580","Stannah Lifts Limited","17/0282/SAG","3,104.00","Grants paid out","190400169","06/12/2017","-","Disabled Facilities Grants","C5000"
"Wolverhampton City Council","http://opendatacommunities.org/id/metropolitan-district-council/wolverhampton","707580","Stannah Lifts Limited","17/0347/SAG","1,354.00","Grants paid out","190400172","06/12/2017","-","Disabled Facilities Grants","C5000"
"Wolverhampton City Council","http://opendatacommunities.org/id/metropolitan-district-council/wolverhampton","707580","Stannah Lifts Limited","17/0357/SAG","4,993.00","Grants paid out","190400171","06/12/2017","-","Disabled Facilities Grants","C5000"
"Wolverhampton City Council","http://opendatacommunities.org/id/metropolitan-district-council/wolverhampton","707580","Stannah Lifts Limited","17/0286/SAG","979.90","Grants paid out","190400174","06/12/2017","-","Disabled Facilities Grants","C5000"
"Wolverhampton City Council","http://opendatacommunities.org/id/metropolitan-district-council/wolverhampton","707580","Stannah Lifts Limited","17/0284/SAG","807.00","Grants paid out","190403362","15/12/2017","-","Disabled Facilities Grants","C5000"
"Wolverhampton City Council","http://opendatacommunities.org/id/metropolitan-district-council/wolverhampton","707580","Stannah Lifts Limited","17/0555/SLM","139.88","Grants paid out","190401975","13/12/2017","-","Disabled Facilities Grants","C5000"
"Wolverhampton City Council","http://opendatacommunities.org/id/metropolitan-district-council/wolverhampton","707580","Stannah Lifts Limited","17/0288/SAG","5,351.00","Grants paid out","190400173","06/12/2017","-","Disabled Facilities Grants","C5000"
"Wolverhampton City Council","http://opendatacommunities.org/id/metropolitan-district-council/wolverhampton","707580","Stannah Lifts Limited","17/0554/SLM","122.96","Grants paid out","190401974","13/12/2017","-","Disabled Facilities Grants","C5000"
"Wolverhampton City Council","http://opendatacommunities.org/id/metropolitan-district-council/wolverhampton","707581","Stannah Limited/Stannah Lift Services","S085074973","970.00","Construction and Conversion","130198596","13/12/2017","-","Adaptations for People with Disabilites","C1100"
"Wolverhampton City Council","http://opendatacommunities.org/id/metropolitan-district-council/wolverhampton","707581","Stannah Limited/Stannah Lift Services","s085070413","50.00","Construction and Conversion","130185884","13/12/2017","-","Adaptations for People with Disabilites","C1100"
"Wolverhampton City Council","http://opendatacommunities.org/id/metropolitan-district-council/wolverhampton","707581","Stannah Limited/Stannah Lift Services","s085076004","100.00","Construction and Conversion","130195764","06/12/2017","-","Adaptations for People with Disabilites","C1100"
"Wolverhampton City Council","http://opendatacommunities.org/id/metropolitan-district-council/wolverhampton","707581","Stannah Limited/Stannah Lift Services","s085075827","4,647.00","Construction and Conversion","130195923","06/12/2017","-","Adaptations for People with Disabilites","C1100"
"Wolverhampton City Council","http://opendatacommunities.org/id/metropolitan-district-council/wolverhampton","707581","Stannah Limited/Stannah Lift Services","S085076940","4,482.00","Construction and Conversion","130198597","20/12/2017","-","Adaptations for People with Disabilites","C1100"
"Wolverhampton City Council","http://opendatacommunities.org/id/metropolitan-district-council/wolverhampton","707581","Stannah Limited/Stannah Lift Services","S085077344","100.00","Construction and Conversion","130197454","27/12/2017","-","Disabled Facilities Grants","C1100"
"Wolverhampton City Council","http://opendatacommunities.org/id/metropolitan-district-council/wolverhampton","707581","Stannah Limited/Stannah Lift Services","S085077352","5,459.60","Construction and Conversion","130198598","27/12/2017","-","Adaptations for People with Disabilites","C1100"
"Wolverhampton City Council","http://opendatacommunities.org/id/metropolitan-district-council/wolverhampton","707581","Stannah Limited/Stannah Lift Services","s085076518","50.00","Construction and Conversion","130197293","13/12/2017","-","Adaptations for People with Disabilites","C1100"
"Wolverhampton City Council","http://opendatacommunities.org/id/metropolitan-district-council/wolverhampton","707581","Stannah Limited/Stannah Lift Services","s085070154","50.00","Construction and Conversion","130185883","13/12/2017","-","Adaptations for People with Disabilites","C1100"
"Wolverhampton City Council","http://opendatacommunities.org/id/metropolitan-district-council/wolverhampton","707581","Stannah Limited/Stannah Lift Services","s085077608","4,564.00","Construction and Conversion","130198064","29/12/2017","-","Adaptations for People with Disabilites","C1100"
"Wolverhampton City Council","http://opendatacommunities.org/id/metropolitan-district-council/wolverhampton","707581","Stannah Limited/Stannah Lift Services","S085076623","-4,273.00","Construction and Conversion","130197294","20/12/2017","-","Adaptations for People with Disabilites","C1100"
"Wolverhampton City Council","http://opendatacommunities.org/id/metropolitan-district-council/wolverhampton","707581","Stannah Limited/Stannah Lift Services","s085074210","4,864.00","Construction and Conversion","130195761","06/12/2017","-","Adaptations for People with Disabilites","C1100"
"Wolverhampton City Council","http://opendatacommunities.org/id/metropolitan-district-council/wolverhampton","707581","Stannah Limited/Stannah Lift Services","S085077139","100.00","Construction and Conversion","130197452","27/12/2017","-","Adaptations for People with Disabilites","C1100"
"Wolverhampton City Council","http://opendatacommunities.org/id/metropolitan-district-council/wolverhampton","707581","Stannah Limited/Stannah Lift Services","s085076007","100.00","Construction and Conversion","130195765","06/12/2017","-","Adaptations for People with Disabilites","C1100"
"Wolverhampton City Council","http://opendatacommunities.org/id/metropolitan-district-council/wolverhampton","707581","Stannah Limited/Stannah Lift Services","S085075826","4,273.00","Construction and Conversion","130195922","06/12/2017","-","Adaptations for People with Disabilites","C1100"
"Wolverhampton City Council","http://opendatacommunities.org/id/metropolitan-district-council/wolverhampton","707581","Stannah Limited/Stannah Lift Services","S085077217","4,198.00","Construction and Conversion","130197296","27/12/2017","-","Adaptations for People with Disabilites","C1100"
"Wolverhampton City Council","http://opendatacommunities.org/id/metropolitan-district-council/wolverhampton","707581","Stannah Limited/Stannah Lift Services","S085077475","100.00","Construction and Conversion","130198599","27/12/2017","-","Adaptations for People with Disabilites","C1100"
"Wolverhampton City Council","http://opendatacommunities.org/id/metropolitan-district-council/wolverhampton","707581","Stannah Limited/Stannah Lift Services","s085071268","100.00","Construction and Conversion","130187093","13/12/2017","-","Adaptations for People with Disabilites","C1100"
"Wolverhampton City Council","http://opendatacommunities.org/id/metropolitan-district-council/wolverhampton","707581","Stannah Limited/Stannah Lift Services","s085060054","50.00","Construction and Conversion","130187287","13/12/2017","-","Adaptations for People with Disabilites","C1100"
"Wolverhampton City Council","http://opendatacommunities.org/id/metropolitan-district-council/wolverhampton","707581","Stannah Limited/Stannah Lift Services","S085072817","2,689.00","Construction and Conversion","130197292","06/12/2017","-","Adaptations for People with Disabilites","C1100"
"Wolverhampton City Council","http://opendatacommunities.org/id/metropolitan-district-council/wolverhampton","707581","Stannah Limited/Stannah Lift Services","s085076002","4,171.00","Construction and Conversion","130195924","06/12/2017","-","Adaptations for People with Disabilites","C1100"
"Wolverhampton City Council","http://opendatacommunities.org/id/metropolitan-district-council/wolverhampton","707581","Stannah Limited/Stannah Lift Services","S085077231","50.00","Construction and Conversion","130197453","27/12/2017","-","Adaptations for People with Disabilites","C1100"
"Wolverhampton City Council","http://opendatacommunities.org/id/metropolitan-district-council/wolverhampton","707581","Stannah Limited/Stannah Lift Services","s085070751","4,104.00","Construction and Conversion","130186222","27/12/2017","-","Adaptations for People with Disabilites","C1100"
"Wolverhampton City Council","http://opendatacommunities.org/id/metropolitan-district-council/wolverhampton","707581","Stannah Limited/Stannah Lift Services","s085075710","50.00","Construction and Conversion","130194987","01/12/2017","-","Adaptations for People with Disabilites","C1100"
"Wolverhampton City Council","http://opendatacommunities.org/id/metropolitan-district-council/wolverhampton","707581","Stannah Limited/Stannah Lift Services","S085076939","100.00","Construction and Conversion","130197295","20/12/2017","-","Adaptations for People with Disabilites","C1100"
"Wolverhampton City Council","http://opendatacommunities.org/id/metropolitan-district-council/wolverhampton","707581","Stannah Limited/Stannah Lift Services","s085060035","100.00","Construction and Conversion","130187286","13/12/2017","-","Adaptations for People with Disabilites","C1100"
"Wolverhampton City Council","http://opendatacommunities.org/id/metropolitan-district-council/wolverhampton","707581","Stannah Limited/Stannah Lift Services","s085061219","50.00","Construction and Conversion","130187288","13/12/2017","-","Adaptations for People with Disabilites","C1100"
"Wolverhampton City Council","http://opendatacommunities.org/id/metropolitan-district-council/wolverhampton","707597","Steertrak (UK) Limited","69018","90.00","Services - Professional Fees","190403344","15/12/2017","Fleet Services","Fleet Management","R4400"
"Wolverhampton City Council","http://opendatacommunities.org/id/metropolitan-district-council/wolverhampton","707627","Stoneleigh Consultancy Limited","46303","1,352.00","Computing - Purchase of Hardware","130196595","20/12/2017","ICTS","Strategic ICTS (ICT Service Budget)","R4530"
"Wolverhampton City Council","http://opendatacommunities.org/id/metropolitan-district-council/wolverhampton","707627","Stoneleigh Consultancy Limited","46258","190.00","Computing - Purchase of Hardware","130195580","13/12/2017","Early Intervention","EIP Locality 5 � Whitmore Reans","R4530"
"Wolverhampton City Council","http://opendatacommunities.org/id/metropolitan-district-council/wolverhampton","707627","Stoneleigh Consultancy Limited","46272","3,280.18","Computing - Purchase of Hardware","130196594","13/12/2017","ICTS","Strategic ICTS (ICT Service Budget)","R4530"
"Wolverhampton City Council","http://opendatacommunities.org/id/metropolitan-district-council/wolverhampton","707627","Stoneleigh Consultancy Limited","46262","1,289.00","Computing - Purchase of Hardware","130195581","13/12/2017","Early Intervention","EIP Locality 6 � Dovecotes","R4530"
"Wolverhampton City Council","http://opendatacommunities.org/id/metropolitan-district-council/wolverhampton","707627","Stoneleigh Consultancy Limited","46264","850.00","Computing - Consumables","130195583","13/12/2017","ICTS","Strategic ICTS (ICT Service Budget)","R4532"
"Wolverhampton City Council","http://opendatacommunities.org/id/metropolitan-district-council/wolverhampton","707644","Streetmaster (South Wales)Limited","4747","548.00","Materials for resale","130194988","01/12/2017","Bereavement Services","Cemeteries","R4008"
"Wolverhampton City Council","http://opendatacommunities.org/id/metropolitan-district-council/wolverhampton","707644","Streetmaster (South Wales)Limited","4747","47.00","Materials for resale","130194988","01/12/2017","Bereavement Services","Cemeteries","R4008"
"Wolverhampton City Council","http://opendatacommunities.org/id/metropolitan-district-council/wolverhampton","707644","Streetmaster (South Wales)Limited","4792","595.00","Materials for resale","130197455","27/12/2017","Bereavement Services","Cemeteries","R4008"
"Wolverhampton City Council","http://opendatacommunities.org/id/metropolitan-district-council/wolverhampton","707644","Streetmaster (South Wales)Limited","4793","595.00","Materials for resale","130197830","27/12/2017","Bereavement Services","Cemeteries","R4008"
"Wolverhampton City Council","http://opendatacommunities.org/id/metropolitan-district-council/wolverhampton","707680","Sunfield Childrens Homes Limited","SIN000061","21,753.25","TPP - Independent Schools","130199121","27/12/2017","Standards and Vulnerable Pupils","SEN Education OOC","R5036"
"Wolverhampton City Council","http://opendatacommunities.org/id/metropolitan-district-council/wolverhampton","707682","Sunflowers Day Nursery Limited","EYPP Autumn 2017","667.80","TPP - Private Nursery Education Funding","190404359","20/12/2017","Early Years","Early Years Pupil Premium","R5035"
"Wolverhampton City Council","http://opendatacommunities.org/id/metropolitan-district-council/wolverhampton","707682","Sunflowers Day Nursery Limited","NEF Autumn 2017 INST 2","8,957.14","TPP - Private Nursery Education Funding","190403399","15/12/2017","Early Years","Early Years Universal Entitlement for 3 and 4 Year Olds","R5035"
"Wolverhampton City Council","http://opendatacommunities.org/id/metropolitan-district-council/wolverhampton","707682","Sunflowers Day Nursery Limited","TFT Autumn 2017 Inst 2","6,749.12","Grant Payments","190404263","20/12/2017","Early Years","Early Years Entitlement Funding for Disadvantaged 2 Year Olds","R4700"
"Wolverhampton City Council","http://opendatacommunities.org/id/metropolitan-district-council/wolverhampton","707682","Sunflowers Day Nursery Limited","50-17","305.00","TPP - Child Care provided for client","130198936","20/12/2017","Adult Education","Discretionary Fund","R5034"
"Wolverhampton City Council","http://opendatacommunities.org/id/metropolitan-district-council/wolverhampton","707682","Sunflowers Day Nursery Limited","R Dhillon Enhanced Funding Sum 17","1,000.00","Grant Payments","190403413","15/12/2017","Early Years","Early Years SEN Inclusion Fund","R4700"
"Wolverhampton City Council","http://opendatacommunities.org/id/metropolitan-district-council/wolverhampton","707685","Sunnyside Kennels","SS 1019","1,845.50","Services - Professional Fees","130195925","06/12/2017","Public Protection","Pest Control & Animal Welfare","R4400"
"Wolverhampton City Council","http://opendatacommunities.org/id/metropolitan-district-council/wolverhampton","707686","Sunrise Medical Limited","18UI041489","554.00","Equipment - Purchase","130197297","20/12/2017","Independent Living Service","Independent Living Service","R4000"
"Wolverhampton City Council","http://opendatacommunities.org/id/metropolitan-district-council/wolverhampton","707686","Sunrise Medical Limited","18UI041889","1,590.00","Equipment - Purchase","130197640","27/12/2017","Independent Living Service","Independent Living Service","R4000"
"Wolverhampton City Council","http://opendatacommunities.org/id/metropolitan-district-council/wolverhampton","707686","Sunrise Medical Limited","18UI038946","140.00","Equipment - Purchase","130196428","13/12/2017","Independent Living Service","Independent Living Service","R4000"
"Wolverhampton City Council","http://opendatacommunities.org/id/metropolitan-district-council/wolverhampton","707686","Sunrise Medical Limited","18UI038601","665.00","Equipment - Purchase","130197639","13/12/2017","Independent Living Service","Independent Living Service","R4000"
"Wolverhampton City Council","http://opendatacommunities.org/id/metropolitan-district-council/wolverhampton","707686","Sunrise Medical Limited","18UI038601","84.00","Equipment - R & M","130197639","13/12/2017","Independent Living Service","Independent Living Service","R4003"
"Wolverhampton City Council","http://opendatacommunities.org/id/metropolitan-district-council/wolverhampton","707718","Sweet & Maxwell/Thomson Reuters","6800485685","1,431.00","Subscriptions","130200702","29/12/2017","Legal Services","Legal Services","R4701"
"Wolverhampton City Council","http://opendatacommunities.org/id/metropolitan-district-council/wolverhampton","707718","Sweet & Maxwell/Thomson Reuters","802117243","50.00","Subscriptions","130200709","29/12/2017","Legal Services","Legal Services","R4701"
"Wolverhampton City Council","http://opendatacommunities.org/id/metropolitan-district-council/wolverhampton","707718","Sweet & Maxwell/Thomson Reuters","802093558","56.00","Subscriptions","130200705","29/12/2017","Legal Services","Legal Services","R4701"
"Wolverhampton City Council","http://opendatacommunities.org/id/metropolitan-district-council/wolverhampton","707718","Sweet & Maxwell/Thomson Reuters","802117953","30.00","Subscriptions","130200710","29/12/2017","Legal Services","Legal Services","R4701"
"Wolverhampton City Council","http://opendatacommunities.org/id/metropolitan-district-council/wolverhampton","707718","Sweet & Maxwell/Thomson Reuters","802095001","48.00","Subscriptions","130200706","29/12/2017","Legal Services","Legal Services","R4701"
"Wolverhampton City Council","http://opendatacommunities.org/id/metropolitan-district-council/wolverhampton","707718","Sweet & Maxwell/Thomson Reuters","802118105","32.00","Subscriptions","130200711","29/12/2017","Legal Services","Legal Services","R4701"
"Wolverhampton City Council","http://opendatacommunities.org/id/metropolitan-district-council/wolverhampton","707718","Sweet & Maxwell/Thomson Reuters","6800468944","7,534.94","Subscriptions","130200701","29/12/2017","Legal Services","Legal Services","R4701"
"Wolverhampton City Council","http://opendatacommunities.org/id/metropolitan-district-council/wolverhampton","707718","Sweet & Maxwell/Thomson Reuters","802116901","40.00","Subscriptions","130200708","29/12/2017","Legal Services","Legal Services","R4701"
"Wolverhampton City Council","http://opendatacommunities.org/id/metropolitan-district-council/wolverhampton","707720","Swift Business Solutions Limited","SINV00212526","34.99","Equipment - Purchase","130200032","27/12/2017","Safeguarding","Head of Service Quality and Safeguarding","R4000"
"Wolverhampton City Council","http://opendatacommunities.org/id/metropolitan-district-council/wolverhampton","707722","Swift Maintnce Services (1973) Limited","24250","61.25","Equipment - Catering","130199315","27/12/2017","Visitor Economy","Catering Overhead Account","R4010"
"Wolverhampton City Council","http://opendatacommunities.org/id/metropolitan-district-council/wolverhampton","707722","Swift Maintnce Services (1973) Limited","24221","12,727.22","Equipment - R & M","130198253","13/12/2017","Catering","Education Catering - General Overheads","R4003"
"Wolverhampton City Council","http://opendatacommunities.org/id/metropolitan-district-council/wolverhampton","707722","Swift Maintnce Services (1973) Limited","24223","735.50","Equipment - R & M","130198255","13/12/2017","Catering","Education Catering - General Overheads","R4003"
"Wolverhampton City Council","http://opendatacommunities.org/id/metropolitan-district-council/wolverhampton","707722","Swift Maintnce Services (1973) Limited","24212","518.51","Equipment - Catering","130198249","08/12/2017","Visitor Economy","Catering Overhead Account","R4010"
"Wolverhampton City Council","http://opendatacommunities.org/id/metropolitan-district-council/wolverhampton","707722","Swift Maintnce Services (1973) Limited","24219","260.25","Equipment - R & M","130198252","08/12/2017","Maintenance Programme","Centralised R&M","R4003"
"Wolverhampton City Council","http://opendatacommunities.org/id/metropolitan-district-council/wolverhampton","707722","Swift Maintnce Services (1973) Limited","24222","376.00","Equipment - R & M","130198254","13/12/2017","Catering","Education Catering - General Overheads","R4003"
"Wolverhampton City Council","http://opendatacommunities.org/id/metropolitan-district-council/wolverhampton","707722","Swift Maintnce Services (1973) Limited","24224","499.50","Equipment - R & M","130198256","13/12/2017","Catering","Education Catering - General Overheads","R4003"
"Wolverhampton City Council","http://opendatacommunities.org/id/metropolitan-district-council/wolverhampton","707722","Swift Maintnce Services (1973) Limited","24213","160.00","Equipment - Catering","130198250","08/12/2017","Visitor Economy","Civic Halls - CHIP","R4010"
"Wolverhampton City Council","http://opendatacommunities.org/id/metropolitan-district-council/wolverhampton","707722","Swift Maintnce Services (1973) Limited","24141","3,395.84","Equipment - R & M","130197832","08/12/2017","Cleaning","Cleaning of Buildings - General","R4003"
"Wolverhampton City Council","http://opendatacommunities.org/id/metropolitan-district-council/wolverhampton","707722","Swift Maintnce Services (1973) Limited","24278","132.50","Equipment - R & M","130199424","27/12/2017","Learning Disability Provider","Ernest Bold Court","R4003"
"Wolverhampton City Council","http://opendatacommunities.org/id/metropolitan-district-council/wolverhampton","707722","Swift Maintnce Services (1973) Limited","24273","65.10","Equipment - Catering","130199319","27/12/2017","Visitor Economy","Art Gallery Tea Room","R4010"
"Wolverhampton City Council","http://opendatacommunities.org/id/metropolitan-district-council/wolverhampton","707722","Swift Maintnce Services (1973) Limited","24218","47.00","Equipment - R & M","130198251","13/12/2017","Leisure Services","Bert Williams Leisure Centre Caf�","R4003"
"Wolverhampton City Council","http://opendatacommunities.org/id/metropolitan-district-council/wolverhampton","707722","Swift Maintnce Services (1973) Limited","24218","194.10","Equipment - R & M","130198251","13/12/2017","Leisure Services","Bert Williams Leisure Centre Caf�","R4003"
"Wolverhampton City Council","http://opendatacommunities.org/id/metropolitan-district-council/wolverhampton","707722","Swift Maintnce Services (1973) Limited","24118","-682.22","Equipment - R & M","130197831","08/12/2017","Catering","Education Catering - General Overheads","R4003"
"Wolverhampton City Council","http://opendatacommunities.org/id/metropolitan-district-council/wolverhampton","707722","Swift Maintnce Services (1973) Limited","24271","86.48","Equipment - Catering","130199317","27/12/2017","Visitor Economy","Bantock - Tea Rooms","R4010"
